Workbook

Sheet Dairy Wizard
A1: Parlour Wizard
A2: Data entry
A3: Farm name/reference
A4: Herd size
A5: Milk yield/cow
A6: Depreciation buildings | B6: 5
A7: Depreciation plant | B7: 10
A8: Interest rate | B8: 5
A9: Electricity cost | B9: 10
A10: Water cost | B10: 1
A11: Labour cost | B11: 10
A12: Tractor + man cost | B12: 25

Sheet Data entry
A1: Housing Data entry
A4: Planned investment | B4: 100000
A6: Cow number for new house | B6: 100
A7: Annual yield/cow | B7: 7000
A8: Housing period | B8: 200 | D8: =366-B8 -> 166
A9: Period of heat stress | B9: 0
A10: Depreciation buildings | B10: ='Dairy Wizard'!B6 -> 5
A11: Depreciation machinery | B11: ='Dairy Wizard'!B7 -> 10
A12: Interest rate | B12: ='Dairy Wizard'!B8 -> 5
A13: Electricity cost | B13: ='Dairy Wizard'!B9 -> 10
A14: Water cost | B14: ='Dairy Wizard'!B10 -> 1
A15: Labour cost | B15: ='Dairy Wizard'!B11 -> 10
A16: Tractor + man cost | B16: ='Dairy Wizard'!B12 -> 25
A17: Straw cost | B17: 40
A19: Sand cost | B19: 15
A20: Sawdust cost | B20: 50
A21: Yield per cow in milk | B21: 25 | C21: litres/day
A22: Butterfat price | B22: 1.5 | C22: p/1%
A23: Milk price | B23: 18.5 | C23: p/litre
A24: Milking diet cost | B24: 200 | C24: p/cow/day
A25: Quota leasing price | B25: 0.1 | C25: p/litre

Sheet Operating costs
A1: OPERATING COSTS
A4: BEDDING REQUIREMENTS
A6: Straw unchopped yard | B6: 15 | C6: kg/cow/day
A7: Straw chopped yard | B7: 10 | C7: kg/cow/day
A8: Straw unchopped cubicle | B8: 7 | C8: kg/cow/day
A9: Straw chopped cubicle | B9: 5 | C9: kg/cow/day
A10: Straw chopped cubicle/mat | B10: 3 | C10: kg/cow/day
A11: Sawdust cubicle/mat | B11: 1 | C11: kg/cow/day
A12: Sand cubicle | B12: 14 | C12: kg/cow/day
A14: LABOUR REQUIREMENTS
A16: STRAW YARD bedding | B16: Mins./cow/day | C16: Labour units
A17: Manual bedding | B17: 0.9 | C17: 1
A18: Tractor mounted | B18: 0.45 | C18: 1
A19: Overhead dispenser | B19: 0.3 | C19: 1
A21: STRAW YARD cleaning | B21: Mins./cow/day | C21: Labour units | D21: Note: 2 men; 1 tractor/1loader & 2 spreaders
A22: Yard cleaning | B22: 0.28 | C22: 2 | D22: Every 4 weeks, 48t straw & 108t slurry (60% of 60l/day) with 2 men
A24: CUBICLE bedding | B24: Mins./cow/day | C24: Labour units
A25: Straw manual | B25: 0.6 | C25: 1
A26: Straw tractor chopped | B26: 0.5 | C26: 1
A27: Sawdust manual | B27: 0.6 | C27: 1
A28: Sawdust dispenser | B28: 0.3 | C28: 1
A29: Sand manual | B29: 0.4 | C29: 1 | D29: 3 times/week
A30: Sand dispenser | B30: 0.13 | C30: 1 | D30: 3 times/week
A32: CUBICLE scraping | B32: Mins./cow/day | C32: Labour units
A33: Scraping | B33: 0.6 | C33: 1 | D33: 2 times/day. Storage adjacent to cubicles
A35: Scraper system
A36: Maintenance % of capital | B36: 2
A37: Electricity kW/cow/day | B37: 0.18
A39: Flush system
A40: Maintenance % of capital | B40: 0
A41: Water/cow/day | B41: 0 | C41: cubic metres
A42: Electricity kW/cow/day | B42: 0
A44: HS Ventilation system
A45: Maintenance % of capital | B45: 2
A46: Electricity kW/cow/day | B46: 1.6
A47: HVLS Ventilation system
A48: Maintenance % of capital | B48: 2
A49: Electricity kW/cow/day | B49: 0.14
A52: THI | B52: Relative humidity %
A53: Temp | B53: 0 | C53: 20 | D53: 40 | E53: 60 | F53: 80 | G53: 100
A54: 22 | G54: 72
A55: 24 | E55: 72 | F55: 73 | G55: 75
A56: 26 | D56: 72 | E56: 74 | F56: 77 | G56: 79
A57: 28 | C57: 72 | D57: 74 | E57: 78 | F57: 82 | G57: 84
A58: 30 | C58: 74 | D58: 77 | E58: 80 | F58: 83 | G58: 86
A59: 32 | B59: 72 | C59: 76 | D59: 79 | E59: 83 | F59: 86 | G59: 90
A60: 34 | B60: 74 | C60: 78 | D60: 82 | E60: 86 | F60: 90 | G60: 94
A61: 36 | B61: 76 | C61: 80 | D61: 85 | E61: 90 | F61: 94 | G61: 98
A62: 38 | B62: 78 | C62: 83 | D62: 87 | E62: 92 | F62: 97 | G62: 99
A63: Milk yield loss = 3%/1 THI (>73)
A65: Supplemental light
A66: Yield increase | B66: 8 | C66: %
A67: Feed intake increase | B67: 6 | C67: %
A68: Decrease in BF% | B68: 0.16 | C68: %
A69: Maintenance % of capital | B69: 2
A70: Electricity use Kw/cow/day | B70: 0.5
A72: Remote oestrus detection
A73: £/cow/annum | B73: 50 | C73: tbc
A76: Culling rate | B76: % | D76: Cull cost | E76: £/cow
A77: Straw | B77: 28 | D77: Heifer | E77: 1750
A78: Concrete | B78: 30
A79: Mattress | B79: 28 | D79: Cull | E79: 400
A80: Mat | B80: 28 | D80: Net | E80: =E77-E79 -> 1350
A81: Sand | B81: 26
A83: Lameness rate | B83: % | D83: Lameness cost | E83: £/cow
A84: Straw | B84: 25 | D84: Treatment cost | E84: 246 | F84: Esselmont & Kossabati, 1997
A85: Concrete | B85: 28
A86: Mattress | B86: 24
A87: Mat | B87: 24
A88: Sand | B88: 11
A90: Mastitis rate | B90: qtr/100 cows/yr | D90: Mastitis cost | E90: £/cow/qtr
A91: Straw | B91: 35 | D91: Cost | E91: 183 | F91: Esselmont & Kossabati, 1997
A92: Concrete | B92: 30
A93: Mattress | B93: 25
A94: Mat | B94: 25
A95: Sand | B95: 20

Sheet Capital costs
A1: CAPITAL COSTS
A5: Housing only | B5: Cost £/sq.metre | C5: Sq.metre/cow | D5: £/cow
A6: Straw yard | B6: 125 | C6: 10.5 | D6: =B6*C6 -> 1312.5
A7: Kennel 2 row | B7: 95 | C7: 4.6 | D7: =(B7*C7)-50 -> 387 | E7: Excludes concrete base for cubicle - select below
A8: Cubicle 2 row excl. bed | B8: 175 | C8: 4.6 | D8: 805 | E8: Excludes concrete base for cubicle - select below
A9: Cubicle 2 row with slats | B9: 355 | C9: 4.6 | D9: 1633 | E9: Excludes concrete base for cubicle - select below
A10: Kennel 6 row | B10: 95 | C10: 5.2 | D10: =(B10*C10)-50 -> 444 | E10: Excludes concrete base for cubicle - select below
A11: Cubicle 6 row excl. bed | B11: 143 | C11: 5.2 | D11: 743.6 | E11: Excludes concrete base for cubicle - select below
A12: Cubicle 6 row with slats | B12: 355 | C12: 5.2 | D12: 1846 | E12: Excludes concrete base for cubicle - select below
A14: Housing & feeding | B14: Cost £/sq.metre | C14: Sq.metre/cow | D14: £/cow
A15: Straw yard | B15: 104 | C15: 12.2 | D15: =B15*C15 -> 1268.8
A16: Kennel 2 row | B16: 95 | C16: 8.9 | D16: =(B16*C16)-50 -> 795.5 | E16: Excludes concrete base for cubicle - select below
A17: Cubicle 4 row | B17: 126 | C17: 8.9 | D17: 1121.4 | E17: Excludes concrete base for cubicle - select below
A18: Cubicle 4 row with slats | B18: 355 | C18: 8.9 | D18: 3159.5 | E18: Excludes concrete base for cubicle - select below
A19: Kennel 6 row | B19: 95 | C19: 7.8 | D19: =(B19*C19)-50 -> 691 | E19: Excludes concrete base for cubicle - select below
A20: Cubicle 6 row | B20: 130 | C20: 7.8 | D20: 1014 | E20: Excludes concrete base for cubicle - select below
A21: Cubicle 6 row with slats | B21: 355 | C21: 7.8 | D21: 2769 | E21: Excludes concrete base for cubicle - select below
A23: Slurry store | D23: £/cow | E23: Based on 10 cubic metres/cow for 180 days
A24: Storage | B24: 32 | C24: 15 | D24: =B24*C24 -> 480 | E24: Based on 150 cow cost >1500 cubic metres
A25: Reception pit | D25: 22 | E25: Based on £3250 cost for 150 cows
A26: Pump | D26: 27 | E26: Based on £4000 cost for 150 cows
A27: TOTAL | D27: =SUM(D24:D26) -> 529
A29: Scraper system | D29: £/cow
A30: Total installation | D30: 66 | E30: Based on 200 cow unit, 4 passage of 40 metre length
A32: Cubicle beds | D32: £/cow
A33: Cubicle division | D33: 60 | E33: Super comfort type included in building cost for cubicle options
A34: Concrete | D34: 55 | E34: Cubicle base not included in the building cost
A35: Mat + concrete | D35: 85 | E35: Mat £30 + £55 concrete
A36: Mattress + concrete | D36: 115 | E36: Mattress £60 + £55 concrete
A37: Sand & concrete | D37: 65 | E37: Initial filling of sand £15/cow, but offset by saving in concrete for bed
A38: Water beds | D38: 165 | E38: Bed £110 + £55 concrete
A40: Ventilation | D40: £/cow
A41: High Speed Cooling fans | D41: 150 | E41: 36 fans for 132 cows @ £550/fan
A42: High Volume Low Speed fan | D42: 250 | E42: 6 fans for 132 cows @ £5500/fan
A43: Side wall curtain - auto | D43: 55 | E43: Based on 200 cows, 60m long building both sides. Includes climate control
A44: Side wall curtain - manual | D44: 44 | E44: Based on 200 cows, 60m long building both sides
A45: Insulated roof sheet | D45: 0 | E45: per sq.metre
A47: Lighting | D47: £/cow
A48: Total installation | D48: 45 | E48: From Farm Energy Centre 2001 inflated to 2010.
A50: Flush washing | D50: £/cow
A51: Slurry separator | D51: 0 | E51: Based on £25,000 cost for 200 cows
A52: Flush system | D52: 0 | E52: Based on £25,000 cost for 200 cows
A53: Storage tanks
A54: TOTAL | D54: =D51+D52+D53 -> 0
A56: Remote oestrus detection | D56: £/cow
A57: Installation | D57: 0 | E57: tbc
A59: Machinery | B59: £
A60: Straw chopper - tractor mounted | B60: 2750
A61: Sand dispenser | B61: 3850
A62: Sawdust dispenser | B62: 2200
A63: Straw spreader | B63: 6600
A64: Straw overhead dispenser | B64: 20000

Sheet Options
B1: NEW HOUSING OPTIONS
B6: Bedding Method
I7: If ticked then brings in slurry cost below
I9: Milk sales/annum | K9: ='Data entry'!B6*'Data entry'!B7 -> 700000
B10: Building options | E10: Operating costs £/annum
C11: Cost £/cow | D11: £ total | E11: Interest | F11: Depreciation | G11: Bedding | H11: Labour | I11: Other | J11: Total | K11: p/litre
C12: =IF(Markers!$A$7=TRUE,IF(Markers!$A$2=TRUE,'Capital costs'!D6,'Capital costs'!D15),"") ->  | D12: =IF(Markers!$A$7=TRUE,IF(AND(Markers!$A$38=TRUE,Markers!$A$34=1),'Capital costs'!B64,IF(AND(Markers!$A$37=TRUE,Markers!$A$34=1),'Capital costs'!B63,0))+'Data entry'!$B$6*C12,"") ->  | E12: =IF(Markers!$A$7=TRUE,'Data entry'!$B$12/100*D12,"") ->  | F12: =IF(Markers!$A$7=TRUE,'Data entry'!$B$10/100*('Data entry'!$B$6*C12)+(D12-('Data entry'!$B$6*C12))*'Data entry'!$B$11/100,"") ->  | G12: =IF(Markers!$A$7=TRUE,housing_days*'Data entry'!B17*IF(Markers!$A$34=2,'Operating costs'!B7/1000,'Operating costs'!B6/1000),"") ->  | H12: =IF(Markers!$A$7=TRUE,((housing_days*IF(Markers!$A$35=TRUE,labour*'Operating costs'!$B$17,IF(OR(Markers!$A$36=TRUE,Markers!$A$37=TRUE),LabourR*'Operating costs'!$B$18,LabourR*'Operating costs'!$B$19)))+(housing_days*'Operating costs'!$B$22*'Data entry'!$B$16))/60,"") ->  | J12: =SUM(E12:I12) -> 0 | K12: =J12/$K$9*100 -> 0
C13: =IF(Markers!$A$8=TRUE,IF(Markers!$A$2=TRUE,'Capital costs'!D7,'Capital costs'!D16),"") ->  | D13: =IF(Markers!$A$8=TRUE,'Data entry'!$B$6*C13+IF(AND(Markers!$A$38=TRUE,Markers!$A$34=4),'Capital costs'!$B$62,0),"") ->  | E13: =IF(Markers!$A$8=TRUE,'Data entry'!$B$12/100*D13,"") ->  | F13: =IF(Markers!$A$8=TRUE,'Data entry'!$B$10/100*D13,"") ->  | J13: 0 | K13: 0
C14: =IF(Markers!$C$8=TRUE,IF(Markers!$A$2=TRUE,'Capital costs'!D10,'Capital costs'!D19),"") ->  | D14: =IF(Markers!$C$8=TRUE,'Data entry'!$B$6*C14,"") ->  | E14: =IF(Markers!$C$8=TRUE,'Data entry'!$B$12/100*D14,"") ->  | F14: =IF(Markers!$C$8=TRUE,'Data entry'!$B$10/100*D14,"") ->  | J14: =SUM(E14:I14) -> 0 | K14: 0
C15: =IF(Markers!$A$9=TRUE,IF(Markers!$A$2=TRUE,'Capital costs'!D8,'Capital costs'!D17),"") ->  | D15: =IF(Markers!$A$9=TRUE,'Data entry'!$B$6*C15,"") ->  | E15: =IF(Markers!$A$9=TRUE,'Data entry'!$B$12/100*D15,"") ->  | F15: =IF(Markers!$A$9=TRUE,'Data entry'!$B$10/100*D15,"") ->  | J15: 0 | K15: 0
C16: =IF(Markers!$A$10=TRUE,IF(Markers!$A$2=TRUE,'Capital costs'!D11,'Capital costs'!D20),"") -> 743.6 | D16: =IF(Markers!$A$10=TRUE,'Data entry'!$B$6*C16,"") -> 74360 | E16: =IF(Markers!$A$10=TRUE,'Data entry'!$B$12/100*D16,"") -> 3718 | F16: =IF(Markers!$A$10=TRUE,'Data entry'!$B$10/100*D16,"") -> 3718 | J16: 7436 | K16: 1.062285714
C17: =IF(Markers!$A$11=TRUE,IF(Markers!$A$2=TRUE,'Capital costs'!D9,'Capital costs'!D18),"") ->  | D17: =IF(Markers!$A$11=TRUE,'Data entry'!$B$6*C17,"") ->  | E17: =IF(Markers!$A$11=TRUE,'Data entry'!$B$12/100*D17,"") ->  | F17: =IF(Markers!$A$11=TRUE,'Data entry'!$B$10/100*D17,"") ->  | J17: 0 | K17: 0
C18: =IF(Markers!$C$11=TRUE,IF(Markers!$A$2=TRUE,'Capital costs'!D12,'Capital costs'!D21),"") ->  | D18: =IF(Markers!$C$11=TRUE,'Data entry'!$B$6*C18,"") ->  | E18: =IF(Markers!$C$11=TRUE,'Data entry'!$B$12/100*D18,"") ->  | F18: =IF(Markers!$C$11=TRUE,'Data entry'!$B$10/100*D18,"") ->  | J18: =SUM(E18:I18) -> 0 | K18: 0
B19: Slurry System | C19: =IF(Markers!$A$4=TRUE,'Capital costs'!D27,"") -> 529 | D19: =IF(Markers!$A$4=TRUE,'Data entry'!$B$6*C19,"") -> 52900 | E19: =IF(Markers!$A$4=TRUE,'Data entry'!$B$12/100*D19,"") -> 2645 | F19: =IF(Markers!$A$4=TRUE,'Data entry'!$B$10/100*D19,"") -> 2645 | J19: 5290 | K19: 0.7557142857
B21: Cubicle bed options
C22: =IF(Markers!$A$7=FALSE,IF(Markers!$A$15=TRUE,'Capital costs'!D34,""),"") -> 55 | D22: =IF(Markers!$A$7=FALSE,IF(Markers!$A$15=TRUE,IF(AND(Markers!$A$36=TRUE,Markers!$A$34=2),'Capital costs'!$B$60,IF(AND(Markers!$A$37=TRUE,Markers!$A$34=1),'Capital costs'!$B$63,IF(AND(Markers!$A$38=TRUE,Markers!$A$34=1),'Capital costs'!$B$64,IF(AND(Markers!$A$38=TRUE,Markers!$A$34=4),'Capital costs'!$B$62))))+'Data entry'!$B$6*C22,""),"") -> 8250 | E22: =IF(Markers!$A$7=FALSE,IF(Markers!$A$15=TRUE,'Data entry'!$B$12/100*D22,""),"") -> 412.5 | F22: =IF(Markers!$A$7=FALSE,IF(Markers!$A$15=TRUE,'Data entry'!$B$10/100*('Data entry'!$B$6*C22)+((D22-('Data entry'!$B$6*C22))*'Data entry'!$B$11/100),""),"") -> 550 | G22: =IF(Markers!$A$7=FALSE,IF(Markers!$A$15=TRUE,housing_days*IF(Markers!$A$34=1,'Operating costs'!$B$8/1000*'Data entry'!$B$17,IF(Markers!$A$34=2,'Operating costs'!$B$9/1000*'Data entry'!$B$17,IF(Markers!$A$34=4,'Operating costs'!$B$11/1000*'Data entry'!$B$20,""))),""),"") -> 4000 | H22: =IF(Markers!$A$7=FALSE,IF(Markers!$A$15=TRUE,((housing_days*IF(Markers!$A$35=TRUE,labour*(IF(Markers!$A$34=1,manstraw,IF(Markers!$A$34=3,mansand,mansaw))),IF(OR(Markers!$A$36=TRUE,Markers!$A$37=TRUE),LabourR*(IF(Markers!$A$34=2,chopstraw,IF(Markers!$A$34=3,dispsand,dispsaw))),LabourR*IF(Markers!$A$34<>4,dispsand,dispsaw))))+(IF(OR(Markers!$A$24=TRUE,Markers!$A$31=TRUE),0,housing_days*scraping_charge)))/60,""),"") -> 4166.666667 | J22: =SUM(E22:I22) -> 9129.166667 | K22: =J22/$K$9*100 -> 1.304166667
C23: =IF(Markers!$A$7=FALSE,IF(Markers!$A$16=TRUE,'Capital costs'!D35,""),"") ->  | D23: =IF(Markers!$A$7=FALSE,IF(Markers!$A$16=TRUE,IF(AND(Markers!$A$36=TRUE,Markers!$A$34=2),'Capital costs'!B60,IF(AND(Markers!$A$37=TRUE,Markers!$A$34=1),'Capital costs'!B63,IF(AND(Markers!$A$38=TRUE,Markers!$A$34=1),'Capital costs'!$B$64,IF(AND(Markers!$A$38=TRUE,Markers!$A$34=4),'Capital costs'!$B$62))))+'Data entry'!$B$6*C23,""),"") ->  | E23: =IF(Markers!$A$7=FALSE,IF(Markers!$A$16=TRUE,'Data entry'!$B$12/100*D23,""),"") ->  | F23: =IF(Markers!$A$7=FALSE,IF(Markers!$A$16=TRUE,'Data entry'!$B$10/100*('Data entry'!$B$6*C23)+((D23-('Data entry'!$B$6*C23))*'Data entry'!$B$11/100),""),"") ->  | G23: =IF(Markers!$A$7=FALSE,IF(Markers!$A$16=TRUE,housing_days*IF(Markers!$A$34=1,'Operating costs'!$B$8/1000*'Data entry'!$B$17,IF(Markers!$A$34=2,'Operating costs'!$B$10/1000*'Data entry'!$B$17,IF(Markers!$A$34=4,'Operating costs'!$B$11/1000*'Data entry'!$B$20,""))),""),"") ->  | H23: =IF(Markers!$A$7=FALSE,IF(Markers!$A$16=TRUE,((housing_days*IF(Markers!$A$35=TRUE,labour*(IF(Markers!$A$34=1,manstraw,IF(Markers!$A$34=3,mansand,mansaw))),IF(OR(Markers!$A$36=TRUE,Markers!$A$37=TRUE),LabourR*(IF(Markers!$A$34=2,chopstraw,IF(Markers!$A$34=3,dispsand,dispsaw))),LabourR*IF(Markers!$A$34<>4,dispsand,dispsaw))))+(IF(OR(Markers!$A$24=TRUE,Markers!$A$31=TRUE),0,housing_days*scraping_charge)))/60,""),"") ->  | J23: =SUM(E23:I23) -> 0 | K23: =J23/$K$9*100 -> 0
C24: =IF(AND(Markers!$A$7=FALSE,Markers!$A$8=FALSE,Markers!$C$8=FALSE),IF(Markers!$A$17=TRUE,'Capital costs'!D36,""),"") ->  | D24: =IF(AND(Markers!$A$7=FALSE,Markers!$A$8=FALSE,Markers!$C$8=FALSE),IF(Markers!$A$17=TRUE,IF(AND(Markers!$A$36=TRUE,Markers!$A$34=2),'Capital costs'!B60,IF(AND(Markers!$A$37=TRUE,Markers!$A$34=1),'Capital costs'!B63,IF(AND(Markers!$A$38=TRUE,Markers!$A$34=1),'Capital costs'!$B$64,IF(AND(Markers!$A$38=TRUE,Markers!$A$34=4),'Capital costs'!$B$62))))+'Data entry'!$B$6*C24,""),"") ->  | E24: =IF(AND(Markers!$A$7=FALSE,Markers!$A$8=FALSE,Markers!$C$8=FALSE),IF(Markers!$A$17=TRUE,'Data entry'!$B$12/100*D24,""),"") ->  | F24: =IF(AND(Markers!$A$7=FALSE,Markers!$A$8=FALSE,Markers!$C$8=FALSE),IF(Markers!$A$17=TRUE,'Data entry'!$B$10/100*('Data entry'!$B$6*C24)+((D24-('Data entry'!$B$6*C24))*'Data entry'!$B$11/100),""),"") ->  | G24: =IF(AND(Markers!$A$7=FALSE,Markers!$A$8=FALSE,Markers!$C$8=FALSE),IF(Markers!$A$17=TRUE,housing_days*IF(Markers!$A$34=1,'Operating costs'!$B$8/1000*'Data entry'!$B$17,IF(Markers!$A$34=2,'Operating costs'!$B$10/1000*'Data entry'!$B$17,IF(Markers!$A$34=4,'Operating costs'!$B$11/1000*'Data entry'!$B$20,""))),""),"") ->  | H24: =IF(AND(Markers!$A$7=FALSE,Markers!$A$8=FALSE,Markers!$C$8=FALSE),IF(Markers!$A$17=TRUE,((housing_days*IF(Markers!$A$35=TRUE,labour*(IF(Markers!$A$34=1,manstraw,IF(Markers!$A$34=3,mansand,mansaw))),IF(OR(Markers!$A$36=TRUE,Markers!$A$37=TRUE),LabourR*(IF(Markers!$A$34=2,chopstraw,IF(Markers!$A$34=3,dispsand,dispsaw))),LabourR*IF(Markers!$A$34<>4,dispsand,dispsaw))))+(IF(OR(Markers!$A$24=TRUE,Markers!$A$31=TRUE),0,housing_days*scraping_charge)))/60,""),"") ->  | J24: =SUM(E24:I24) -> 0 | K24: =J24/$K$9*100 -> 0
C25: =IF(AND(Markers!$A$7=FALSE,Markers!$A$8=FALSE,Markers!$C$8=FALSE),IF(Markers!$A$18=TRUE,'Capital costs'!D38,""),"") ->  | D25: =IF(AND(Markers!$A$7=FALSE,Markers!$A$8=FALSE,Markers!$C$8=FALSE),IF(Markers!$A$18=TRUE,IF(AND(Markers!$A$36=TRUE,Markers!$A$34=2),'Capital costs'!B60,IF(AND(Markers!$A$37=TRUE,Markers!$A$34=1),'Capital costs'!B63,IF(AND(Markers!$A$38=TRUE,Markers!$A$34=1),'Capital costs'!$B$64,IF(AND(Markers!$A$38=TRUE,Markers!$A$34=4),'Capital costs'!$B$62))))+'Data entry'!$B$6*C25,""),"") ->  | E25: =IF(AND(Markers!$A$7=FALSE,Markers!$A$8=FALSE,Markers!$C$8=FALSE),IF(Markers!$A$18=TRUE,'Data entry'!$B$12/100*D25,""),"") ->  | F25: =IF(AND(Markers!$A$7=FALSE,Markers!$A$8=FALSE,Markers!$C$8=FALSE),IF(Markers!$A$18=TRUE,'Data entry'!$B$10/100*('Data entry'!$B$6*C25)+((D25-('Data entry'!$B$6*C25))*'Data entry'!$B$11/100),""),"") ->  | G25: =IF(AND(Markers!$A$7=FALSE,Markers!$A$8=FALSE,Markers!$C$8=FALSE),IF(Markers!$A$18=TRUE,housing_days*IF(Markers!$A$34=1,'Operating costs'!$B$8/1000*'Data entry'!$B$17,IF(Markers!$A$34=2,'Operating costs'!$B$10/1000*'Data entry'!$B$17,IF(Markers!$A$34=4,'Operating costs'!$B$11/1000*'Data entry'!$B$20,""))),""),"") ->  | H25: =IF(AND(Markers!$A$7=FALSE,Markers!$A$8=FALSE,Markers!$C$8=FALSE),IF(Markers!$A$18=TRUE,((housing_days*IF(Markers!$A$35=TRUE,labour*(IF(Markers!$A$34=1,manstraw,IF(Markers!$A$34=3,mansand,mansaw))),IF(OR(Markers!$A$36=TRUE,Markers!$A$37=TRUE),LabourR*(IF(Markers!$A$34=2,chopstraw,IF(Markers!$A$34=3,dispsand,dispsaw))),LabourR*IF(Markers!$A$34<>4,dispsand,dispsaw))))+(IF(OR(Markers!$A$24=TRUE,Markers!$A$31=TRUE),0,housing_days*scraping_charge)))/60,""),"") ->  | J25: =SUM(E25:I25) -> 0 | K25: =J25/$K$9*100 -> 0
C26: =IF(Markers!$A$20=TRUE,'Capital costs'!D37,"") ->  | D26: =IF(Markers!$A$20=TRUE,IF(AND(Markers!$A$38=TRUE,Markers!$A$34=3),'Capital costs'!B61,0)+'Data entry'!$B$6*C26,"") ->  | E26: =IF(Markers!$A$20=TRUE,'Data entry'!$B$12/100*D26,"") ->  | F26: =IF(Markers!$A$20=TRUE,'Data entry'!$B$10/100*('Data entry'!$B$6*C26)+((D26-('Data entry'!$B$6*C26))*'Data entry'!$B$11/100),"") ->  | G26: =IF(Markers!$A$20=TRUE,housing_days*'Operating costs'!$B$12/1000*'Data entry'!$B$19,"") ->  | H26: =IF(Markers!$A$20=TRUE,(housing_days*IF(Markers!$A$38=TRUE,'Operating costs'!$B$30*'Data entry'!$B$16,'Operating costs'!$B$29*'Data entry'!$B$15)+(IF(OR(Markers!$A$24=TRUE,Markers!$A$31=TRUE),0,housing_days*scraping_charge)))/60,"") ->  | J26: =SUM(E26:I26) -> 0 | K26: =J26/$K$9*100 -> 0
B28: Additional features
C29: =IF(Markers!$A24=TRUE,'Capital costs'!D30,"") -> 66 | D29: =IF(Markers!$A$24=TRUE,'Data entry'!$B$6*C29,"") -> 6600 | E29: =IF(Markers!$A$24=TRUE,'Data entry'!$B$12/100*D29,"") -> 330 | F29: =IF(Markers!$A$24=TRUE,'Data entry'!$B$10/100*D29,"") -> 330 | I29: =IF(Markers!$A$24=TRUE,('Data entry'!$B$6*'Capital costs'!$D$30*'Operating costs'!$B$36/100)+((housing_days)*'Operating costs'!$B$37*'Data entry'!$B$13/100),"") -> 492 | J29: =SUM(E29:I29) -> 1152 | K29: =J29/$K$9*100 -> 0.1645714286
C30: =IF(Markers!$A$25=TRUE,'Capital costs'!D48,"") ->  | D30: =IF(Markers!$A$25=TRUE,'Data entry'!$B$6*C30,"") ->  | E30: =IF(Markers!$A$25=TRUE,'Data entry'!$B$12/100*D30,"") ->  | F30: =IF(Markers!$A$25=TRUE,'Data entry'!$B$10/100*D30,"") ->  | I30: =IF(Markers!$A$25=TRUE,('Data entry'!$B$6*'Capital costs'!$D$48*'Operating costs'!$B$69/100)+(housing_days*'Operating costs'!$B$70*'Data entry'!$B$13/100),"") ->  | J30: 0 | K30: 0
C31: =IF(Markers!$A$27=TRUE,'Capital costs'!D41,"") ->  | D31: =IF(Markers!$A$27=TRUE,'Data entry'!$B$6*C31,"") ->  | E31: =IF(Markers!$A$27=TRUE,'Data entry'!$B$12/100*D31,"") ->  | F31: =IF(Markers!$A$27=TRUE,'Data entry'!$B$10/100*D31,"") ->  | I31: =IF(Markers!$A$27=TRUE,('Data entry'!$B$6*'Capital costs'!$D$41*'Operating costs'!$B$45/100)+(('Data entry'!$B$6*'Data entry'!$B$9)*'Operating costs'!$B$46*'Data entry'!$B$13/100),"") ->  | J31: 0 | K31: 0
C32: =IF(Markers!$A$28=TRUE,'Capital costs'!D42,"") -> 250 | D32: =IF(Markers!$A$28=TRUE,'Data entry'!$B$6*C32,"") -> 25000 | E32: =IF(Markers!$A$28=TRUE,'Data entry'!$B$12/100*D32,"") -> 1250 | F32: =IF(Markers!$A$28=TRUE,'Data entry'!$B$10/100*D32,"") -> 1250 | I32: =IF(Markers!$A$28=TRUE,('Data entry'!$B$6*'Capital costs'!$D$42*'Operating costs'!$B$45/100)+(('Data entry'!$B$6*'Data entry'!$B$9)*'Operating costs'!$B$49*'Data entry'!$B$13/100),"") -> 500 | J32: =SUM(E32:I32) -> 3000 | K32: 0.4285714286
C33: =IF(Markers!$A$29=TRUE,'Capital costs'!D44,"") -> 44 | D33: =IF(Markers!$A$29=TRUE,'Data entry'!$B$6*C33,"") -> 4400 | E33: =IF(Markers!$A$29=TRUE,'Data entry'!$B$12/100*D33,"") -> 220 | F33: =IF(Markers!$A$29=TRUE,'Data entry'!$B$10/100*D33,"") -> 220 | J33: 440 | K33: 0.06285714286
C34: =IF(Markers!$A$30=TRUE,'Capital costs'!D43,"") ->  | D34: =IF(Markers!$A$30=TRUE,'Data entry'!$B$6*C34,"") ->  | E34: =IF(Markers!$A$30=TRUE,'Data entry'!$B$12/100*D34,"") ->  | F34: =IF(Markers!$A$30=TRUE,'Data entry'!$B$10/100*D34,"") ->  | J34: 0 | K34: 0
B36: TOTAL | C36: =SUM(C29:C35,C22:C26,C12:C19) -> 1687.6 | D36: 171510 | E36: 8575.5 | F36: 8713 | G36: 4000 | H36: 4166.666667 | I36: 992 | J36: 26447.16667 | K36: 3.778166667
B37: Budget | D37: ='Data entry'!B4 -> 100000
B38: Difference from budget | D38: =D36-D37 -> 71510

Sheet Data entry (3)
A1: Parlour Wizard ~ existing parlour data entry
A6: Parlour type
A7: Number of units | B7: 10
A8: Number of standings | B8: =IF(EXParl="herringbone 1:2",B7*2,B7) -> 20
A9: Cows in milk
A10: Number of milking groups
A11: Milkings per day
A12: Number of people milking
A13: Milking duration in hours
A15: Existing automation | D15: Existing milking routine
A24: Calculated Existing Parlour Speed | B24: ='Options (2)'!G26 ->  | E24: =IF(Markers!$L$2=TRUE,ROUND(B24*24,2),"") -> 
E26: Action Points
E28: =IF(Markers!$L$2=TRUE,IF(B13*110%<E24,"Do you have a problem with milk quality?",IF(E24*110%<B13,"Could you milk more quickly with your existing parlour?","")),"") -> 
E29: =IF(Markers!$L$2=TRUE,IF(B13*110%<E24,"Is your milking routine good enough?",IF(E24*110%<B13,"How good is cow flow in and out of the parlour?","")),"") -> 
E30: =IF(Markers!$L$2=TRUE,IF(E24*110%<B13,"How clean are the cows coming in to the parlour?",""),"") -> 

Sheet Operating costs (3)
A1: Parlour Wizard operating costs
A4: Operations in seconds | B4: 1:1 herr. | C4: 1:2 herr | D4: Int.rotary | E4: Ext.rotary | F4: Rapid exit | G4: AutoTandem
A5: Marshalling | B5: 10 | C5: 10 | D5: 10 | E5: 10 | F5: 10 | G5: 10
A6: Loading cows in | B6: varies | C6: varies | D6: 1 | E6: 0 | F6: varies | G6: 15
A7: In parlour feeding manual | B7: 3 | C7: 3 | D7: 3 | E7: 3 | F7: 0 | G7: 3
A8: In parlour feeding semi auto | B8: 1 | C8: 1 | D8: 1 | E8: 1 | F8: 0 | G8: 1
A9: In parlour feeding auto | B9: 0 | C9: 0 | D9: 0 | E9: 0 | F9: 0 | G9: 0
A10: Pre-dip | B10: 4 | C10: 4 | D10: 4 | E10: 4 | F10: 4 | G10: 4
A11: Pre-spray | B11: 2 | C11: 2 | D11: 2 | E11: 2 | F11: 2 | G11: 2
A12: Fore milk full | B12: 6 | C12: 6 | D12: 6 | E12: 6 | F12: 6 | G12: 6
A13: Fore milk selective | B13: 3 | C13: 3 | D13: 3 | E13: 3 | F13: 3 | G13: 3
A14: Teat preparation wash & dry | B14: 15 | C14: 15 | D14: 15 | E14: 15 | F14: 15 | G14: 15
A15: Teat preparation dry wipe | B15: 8 | C15: 8 | D15: 8 | E15: 8 | F15: 8 | G15: 8
A16: Teat preparation medi wipe | B16: 8 | C16: 8 | D16: 8 | E16: 8 | F16: 8 | G16: 8
A17: Cluster attachment | B17: 12 | C17: 12 | D17: 10 | E17: 10 | F17: 10 | G17: 12
A18: Cluster removal | B18: 5 | C18: 5 | D18: 5 | E18: 5 | F18: 5 | G18: 5
A19: Cluster flush all | B19: 10 | C19: 10 | D19: 10 | E19: 10 | F19: 10 | G19: 10
A20: Cluster flush selective | B20: 2 | C20: 2 | D20: 2 | E20: 2 | F20: 2 | G20: 2
A21: Cluster flush auto | B21: 0 | C21: 0 | D21: 0 | E21: 0 | F21: 0 | G21: 0
A22: Cluster flush none | B22: 0 | C22: 0 | D22: 0 | E22: 0 | F22: 0 | G22: 0
A23: Post disinfect dip | B23: 5 | C23: 5 | D23: 5 | E23: 5 | F23: 5 | G23: 5
A24: Post disinfect spray | B24: 2 | C24: 2 | D24: 2 | E24: 2 | F24: 2 | G24: 2
A25: Post disinfect auto | B25: 0 | C25: 0 | D25: 0 | E25: 0 | F25: 0 | G25: 0
A26: Unload cows | B26: 6 | C26: 6 | D26: 0 | E26: 0 | F26: 1 | G26: 15
A27: Shedding cows | B27: 3 | C27: 3 | D27: 3 | E27: 3 | F27: 3 | G27: 3
A28: Miscellaneous | B28: 10 | C28: 10 | D28: 10 | E28: 10 | F28: 10 | G28: 10
A29: Auto ID | B29: -3 | C29: -3 | D29: -3 | E29: -3 | F29: -3 | G29: -3
A30: Backing gate | B30: -10 | C30: -10 | D30: -10 | E30: -10 | F30: -10 | G30: -10
A31: ACRs | B31: -4 | C31: -4 | D31: -4 | E31: -4 | F31: -4 | G31: -4
A34: AMS cows milked/unit | B34: 70
A35: Auto wash ~ seconds/wash | B35: 720
A37: Number milking | B37: Units/man
A38: 1:1 Herringbone | B38: 24
A39: 1:2 Herringbone | B39: 18
A40: Internal rotary | B40: 20
A41: External rotary | B41: na | C41: Minimum 2 men + auto spray
A42: Rapid exit | B42: 24
A43: Auto tandem | B43: 8
A47: Parlour electricity | B47: 0.05 | C47: kW/litre
A48: Chemical cost cleaning | B48: 0.3 | C48: p/litre
A49: Chemical use pre dip | B49: 1.1 | C49: p/cow/milking
A50: Chemical use pre spray | B50: 1.65 | C50: p/cow/milking
A51: Chemical use post dip | B51: 1.15 | C51: p/cow/milking
A52: Chemical use post spray | B52: 1.73 | C52: p/cow/milking
A53: Chemical use post auto | B53: 4.6 | C53: p/cow/milking
A54: Chemical use autoflush | B54: 1.6 | C54: p/cow/milking
A55: Chemical use auto dip & flush | B55: 2.75 | C55: p/cow/milking
A56: Dry wipes | B56: 2 | C56: p/cow/milking
A57: Medicated wipes | B57: 2.89 | C57: p/cow/milking
A58: Liner cost | B58: 22.5 | C58: £/set of 4
A59: Liner use | B59: 2500 | C59: Milkings
A60: Parlour maintenance | B60: 0.45 | C60: p/litre
A61: AMS chemical & sevice | B61: 3800 | C61: £/unit
F101: =MID(J89,3,3) -> 
F102: =MID(J90,3,3) -> 
F103: =MID(J91,3,3) -> 

Sheet Capital costs (3)
A1: Parlour Wizard Capital Costs
A4: Parlour equipment costs
A5: Herringbone 1:1 | B5: 1800 | C5: £/standing
A6: Herringbone 1:2 | B6: 1700 | C6: £/standing
A7: Rapid exit | B7: 2800 | C7: £/standing
A8: Auto tandem | B8: 7000 | C8: £/standing
A9: Internal rotary | B9: 3250 | C9: £/standing
A10: External rotary | B10: 3250 | C10: £/standing
A11: AMS | B11: 110000 | C11: £/unit
A14: Automation costs
A16: Autoshedding | B16: 5000 | C16: £
A17: Auto ID | B17: 4500 | C17: £
A18: Transponders | B18: 28 | C18: £/cow
A19: Backing gate | B19: 12000 | C19: £
A20: Autowashing | B20: 3600 | C20: £
A21: Automatic dip & flush | B21: 1040 | C21: £/unit
A22: Auto teat spray | B22: 4000
A23: Auto Cluster Flush | B23: 550 | C23: £/unit
A24: ACRs | B24: 500 | C24: £/unit
A25: In parlour feeders | B25: 600 | C25: £/standing
A26: Electronic milk meters | B26: 800 | C26: £/unit
A27: Manual milk meters | B27: 180 | C27: £/unit
A28: Bulk tank < 10000 | B28: 1.5 | C28: £/litre < 10,000
A29: Bulk tank > 10000 | B29: 2.3 | C29: £/litre 10,001 to 25,000
A30: Milk silo | B30: 2.8 | C30: £/litre > 25,000
A32: Parlour building costs
A34: Herringbone 1:1 | B34: 1384 | C34: £/standing
A35: Herringbone 1:2 | B35: 1796 | C35: £/standing
A36: Rapid exit | B36: 2772 | C36: £/standing
A37: Auto tandem | B37: 6930 | C37: £/standing
A38: Internal rotary | B38: 1770 | C38: £/standing
A39: External rotary | B39: 1770 | C39: £/standing
A40: AMS | B40: 22000 | C40: £/unit
A41: Dairy building for bulk tank | B41: 209 | C41: £/cow
A42: Dairy building for silo | B42: 55 | C42: £/cow
A43: Collecting yard | B43: 129 | C43: £/cow
A44: AI stalls | B44: 39 | C44: £/cow
A45: Cattle race | B45: 17 | C45: £/cow

Sheet Options (2)
A1: Planned Parlour Options
A5: Data entry | E5: Investment required
A7: Planned herd size
A8: Planned cows in milk | G8: Capacity
A9: Planned yield | K9: Total Cost
A10: Planned annual litres | B10: =herd*B9 -> 0 | K10: =Report!E14 -> 0
A11: Planned milkings/day | K11: =IF(K10>B13,"You have exceeded your set budget","") -> 
A12: Target Milking Time
A13: Planned budget
A15: Planned automation | E15: Planned milking routine
A24: Parlour configuration | F24: People | G24: Milking time | H24: Cows/hour | I24: Litres
D25: Units | E25: Standings | F25: milking | G25: minutes | H25: per man | I25: /hour
A26: Existing calculated | B26: =IF(Markers!$L$2=TRUE,EXParl,"") -> Herringbone 1:2 | D26: =IF(Markers!$L$2=TRUE,'Data entry (3)'!B7,"") -> 10 | E26: =IF(Markers!$L$2=TRUE,'Data entry (3)'!B8,"") -> 20 | F26: =IF(Markers!$L$2=TRUE,'Data entry (3)'!B12,"") -> 0 | G26: =IF(Markers!$G$28=TRUE,'Options (2)'!$N26*0.9,'Options (2)'!$N26) ->  | H26: =IF(Markers!$L$2=TRUE,ROUND(CIMex/G26/F26/24,0),"") ->  | I26: =IF(Markers!$L$2=TRUE,ROUND((annuallitresex/365/$B$11)/G26/24,0),"") ->  | N26: =IF(Markers!$L$2=TRUE,IF(EXParl="Ams",CIMex*aroutine,IF(OR(EXParl="external rotary",EXParl="internal rotary"),Automationtimeex*CIMex+udderroutineex*LabourFactorEx*CIMex+misctimesex*LabourFactorEx*CIMex+10*LabourFactorEx*CIMex,IF(OR(EXParl="Auto tandem",EXParl="Abreast"),Automationtimeex*CIMex+udderroutineex*LabourFactorEx*CIMex+misctimesex*LabourFactorEx*CIMex+12*LabourFactorEx*CIMex+(CIMex*30),IF(EXParl="rapid exit",(Automationtimeex*(CIMex)+udderroutineex*LabourFactorEx*(CIMex)+10*LabourFactorEx*CIMex+(VLOOKUP($E$26/2,loading,3)*(CIMex/($E$26*0.5)))+misctimesex*LabourFactorEx*(CIMex)),IF(EXParl="herringbone 1:2",((Automationtimeex*(CIMex)+udderroutineex*LabourFactorEx*(CIMex)+misctimesex*LabourFactorEx*CIMex+12*LabourFactorEx*CIMex+(VLOOKUP($E$26/2,loading,3)*(CIMex/($E$26*0.5)))+6*CIMex)*IF(YrCalving=FALSE,0.9,1)),Automationtimeex*CIMex+udderroutineex*LabourFactorEx*CIMex+6*CIMex+12*LabourFactorEx*CIMex+(VLOOKUP($E$26/2,loading,3)*(CIMex/($E$26*0.5)))+misctimesex*LabourFactorEx*CIMex))))+IF(EXParl<>"AMS",autowashex,0))/60/60/24,"") -> 
A27: Existing actual | B27: =IF(Markers!$L$2=TRUE,EXParl,"") -> Herringbone 1:2 | D27: =IF(Markers!$L$2=TRUE,'Data entry (3)'!B7,"") -> 10 | E27: =IF(Markers!$L$2=TRUE,'Data entry (3)'!B8,"") -> 20 | F27: =IF(Markers!$L$2=TRUE,'Data entry (3)'!B12,"") -> 0 | G27: =IF(Markers!$L$2=TRUE,'Data entry (3)'!B13/24,"") -> 00:00:00 | H27: =IF(Markers!$L$2=TRUE,ROUND(('Data entry (3)'!B9/(G27*24)),0)/F27,"") ->  | I27: =IF(Markers!$L$2=TRUE,ROUND((annuallitresex/365/$B$11)/G27/24,0),"") -> 
A28: Select a configuration below to include in report | F28: People | G28: Milking time | H28: Cows/hour | I28: Litres
D29: Units | E29: Standings | F29: milking | G29: minutes | H29: per man | I29: /hour
A30: Herringbone 1:1 | D30: 20 | E30: =D30 -> 20 | F30: 1 | G30: =IF(Markers!$H$28=TRUE,'Options (2)'!$N30*0.9,'Options (2)'!$N30) -> 00:00:00 | H30: =ROUND(CIM/G30/F30/24,0) ->  | I30: =ROUND((annuallitres/365/$B$11)/G30/24,0) ->  | N30: =((Automationtime*CIM+udderroutine*LabourFactorII*CIM+misctimes*LabourFactorII*CIM+12*LabourFactorII*CIM+(VLOOKUP($E$30/2,loading,3)*(CIM/($E$30*0.5)))+6*CIM+IF(parlourname<>"AMS",autowash,0))*IF(YrCalving=TRUE,0.9,1))/60/60/24 -> 0 | V30: =IF(ISNUMBER(U30),IF((U30+1)>4,"",U30+1),"") -> 
A31: Herringbone 1:2 | D31: 10 | E31: =D31*2 -> 20 | F31: 1 | G31: =IF(Markers!$H$28=TRUE,'Options (2)'!$N31*0.9,'Options (2)'!$N31) -> 00:00:00 | N31: =((Automationtime*CIM+udderroutine*LabourFactorII*CIM+misctimes*LabourFactorII*CIM+12*LabourFactorII*CIM+(VLOOKUP($E$31/2,loading,3)*(CIM/($E$31*0.5)))+6*CIM+IF(parlourname<>"AMS",autowash,0))*IF(YrCalving=FALSE,0.9,1))/60/60/24 -> 0
A32: Rapid exit | D32: 20 | E32: =D32 -> 20 | F32: 1 | G32: =IF(Markers!$H$28=TRUE,'Options (2)'!$N32*0.9,'Options (2)'!$N32) -> 00:00:00 | N32: =(Automationtime*CIM+udderroutine*LabourFactorII*CIM+misctimes*LabourFactorII*CIM+10*LabourFactorII*CIM+(VLOOKUP($E$32/2,loading,3)*(CIM/($E$32*0.5)))+IF(parlourname<>"AMS",autowash,0))/60/60/24 -> 0
A33: Auto tandem | D33: 10 | E33: =D33 -> 10 | F33: 1 | G33: =IF(Markers!$H$28=TRUE,'Options (2)'!$N33*0.9,'Options (2)'!$N33) -> 00:00:00 | N33: =(Automationtime*CIM+udderroutine*LabourFactorII*CIM+misctimes*LabourFactorII*CIM+12*LabourFactorII*CIM+(CIM*30)+IF(parlourname<>"AMS",autowash,0))/60/60/24 -> 0
A34: Internal rotary | D34: 30 | E34: =D34 -> 30 | F34: 2 | G34: =IF(Markers!$H$28=TRUE,'Options (2)'!$N34*0.9,'Options (2)'!$N34) -> 00:00:00 | N34: =(Automationtime*CIM+udderroutine*LabourFactorII*CIM+misctimes*LabourFactorII*CIM+10*LabourFactorII*CIM+IF(parlourname<>"AMS",autowash,0))/60/60/24 -> 0
A35: External rotary | D35: 40 | E35: =D35 -> 40 | F35: 2 | G35: =IF(Markers!$H$28=TRUE,'Options (2)'!$N35*0.9,'Options (2)'!$N35) -> 00:00:00 | N35: =(Automationtime*CIM+udderroutine*LabourFactorII*CIM+misctimes*LabourFactorII*CIM+10*LabourFactorII*CIM+IF(parlourname<>"AMS",autowash,0))/60/60/24 -> 0
A36: AMS | D36: =E36 -> 0 | E36: =ROUNDUP(CIM/70,0) -> 0

Sheet Report
A1: =CONCATENATE("Financial Report ","for ", VLOOKUP(TRUE,parlourtype,2,FALSE)," Parlour Option") -> Financial Report for Herringbone 1:1 Parlour Option
F4: Operating costs £/annum
D5: Cost £/cow | E5: £ total | F5: Interest | G5: Depreciation | H5: Labour | I5: Other | J5: Total | K5: p/litre
A6: =IF('Options (2)'!H8>=25000,"Dairy building with silo","Dairy Building for bulk tank") -> Dairy Building for bulk tank | B6: =IF(Markers!H36=TRUE,"Yes","No") -> No | D6: =IF(B6="yes",VLOOKUP(A6,buildingcosts,2,FALSE),"") ->  | E6: =IF(B6="yes",(VLOOKUP(A6,buildingcosts,2,FALSE))*herd,"") ->  | F6: =IF(ISNUMBER(E6),$E6*'Dairy Wizard'!$B$8%,"") ->  | G6: =IF(ISNUMBER(F6),$E6*'Dairy Wizard'!$B$6%,"") ->  | J6: =IF(B6="yes",SUM(F6:I6),"") ->  | K6: =IF(B6="yes",J6*100/annuallitres,"") -> 
A7: =IF(B7="yes",IF('Options (2)'!H8>=25000,"Milk silo",IF('Options (2)'!H8>=10001,"Bulk tank > 10000","Bulk tank < 10000")),"Bulk tank/Milk silo") -> Bulk tank/Milk silo | B7: =IF(Markers!H37=TRUE,"Yes","No") -> No | D7: =IF(B7="yes",E7/herd,"") ->  | E7: =IF(B7="yes",VLOOKUP(A7,equipcosts,2,FALSE)*'Options (2)'!H8,"") ->  | F7: =IF(ISNUMBER(E7),$E7*'Dairy Wizard'!$B$8%,"") ->  | G7: =IF(ISNUMBER(F7),$E7*'Dairy Wizard'!$B$7%,"") -> 
A8: Collecting yard | B8: =IF(Markers!H38=TRUE,"Yes","No") -> No | D8: =IF(B8="yes",VLOOKUP(A8,buildingcosts,2,FALSE),"") ->  | E8: =IF(B8="Yes",VLOOKUP(A8,buildingcosts,2,FALSE)*herd,"") ->  | F8: =IF(ISNUMBER(E8),$E8*'Dairy Wizard'!$B$8%,"") ->  | G8: =IF(ISNUMBER(F8),$E8*'Dairy Wizard'!$B$6%,"") -> 
A9: AI stalls | B9: =IF(Markers!H39=TRUE,"Yes","No") -> No | D9: =IF(B9="yes",E9/herd,"") ->  | E9: =IF(B9="yes",(VLOOKUP(A9,buildingcosts,2,FALSE)+'Capital costs (3)'!B45)*herd,"") ->  | F9: =IF(ISNUMBER(E9),$E9*'Dairy Wizard'!$B$8%,"") ->  | G9: =IF(ISNUMBER(F9),$E9*'Dairy Wizard'!$B$6%,"") -> 
A10: Parlour building | B10: =IF(Markers!H40=TRUE,"Yes","No") -> No | D10: =IF(B10="yes",(VLOOKUP(VLOOKUP(TRUE,parlourtype,2,FALSE),buildingcosts,2,FALSE)*VLOOKUP(VLOOKUP(TRUE,parlourtype,2,FALSE),parlourconfiguration,5,FALSE))/herd,"") ->  | E10: =IF(B10="yes",(VLOOKUP(VLOOKUP(TRUE,parlourtype,2,FALSE),buildingcosts,2,FALSE))*VLOOKUP(VLOOKUP(TRUE,parlourtype,2,FALSE),parlourconfiguration,5,FALSE),"") ->  | F10: =IF(ISNUMBER(E10),$E10*'Dairy Wizard'!$B$8%,"") ->  | G10: =IF(ISNUMBER(F10),$E10*'Dairy Wizard'!$B$6%,"") -> 
A11: Parlour equipment | B11: =IF(Markers!H42=TRUE,"Yes","No") -> No | D11: =IF(B11="yes",(VLOOKUP(VLOOKUP(TRUE,parlourtype,2,FALSE),parlourcosts,2,FALSE)*VLOOKUP(VLOOKUP(TRUE,parlourtype,2,FALSE),parlourconfiguration,5,FALSE))/herd,"") ->  | E11: =IF(B11="yes",(VLOOKUP(VLOOKUP(TRUE,parlourtype,2,FALSE),parlourcosts,2,FALSE))*VLOOKUP(VLOOKUP(TRUE,parlourtype,2,FALSE),parlourconfiguration,5,FALSE),"") ->  | F11: =IF(ISNUMBER(E11),$E11*'Dairy Wizard'!$B$8%,"") ->  | G11: =IF(ISNUMBER(F11),$E11*'Dairy Wizard'!$B$7%,"") -> 
A12: Additional automation | B12: =IF(AND(Markers!J17>0,Markers!H43=TRUE),"Yes","No") -> No | D12: =IF(ISNUMBER(E12),E12/herd,"") ->  | E12: =IF(B12="yes",Markers!J17,"") ->  | F12: =IF(ISNUMBER(E12),$E12*'Dairy Wizard'!$B$8%,"") ->  | G12: =IF(ISNUMBER(F12),$E12*'Dairy Wizard'!$B$7%,"") -> 
A13: Labour & other costs | H13: ='Dairy Wizard'!B11*'Options (2)'!B11*(IF(Markers!$H$23=FALSE,0.2*'Options (2)'!$B$11*365,0)/60/60/24+VLOOKUP(VLOOKUP(TRUE,parlourtype,2,FALSE),parlourdetails,7,FALSE)*VLOOKUP(VLOOKUP(TRUE,parlourtype,2,FALSE),parlourdetails,6,FALSE))*24*365 -> 0 | I13: =IF(VLOOKUP(TRUE,parlourtype,2,FALSE)="AMS",'Operating costs (3)'!B61*VLOOKUP(VLOOKUP(TRUE,parlourtype,2,FALSE),parlourconfiguration,4,FALSE),Markers!I56) -> 803 | J13: =SUM(H13:I13) -> 803 | K13: =(J13/annuallitres)*100 -> 
A14: TOTAL | D14: =SUM(D6:D13) -> 0 | E14: =SUM(E6:E13) -> 0 | F14: 0 | G14: 0 | H14: 0 | I14: 803 | J14: 803 | K14: =(J14/annuallitres)*100 -> 
A15: Budget | E15: ='Options (2)'!B13 -> 0 | G15: Existing parlour | H15: =IF(Markers!$L$2=TRUE,'Dairy Wizard'!B11*'Options (2)'!B11*(IF(Markers!$G$23=FALSE,0.2*'Options (2)'!$B$11*365,0)/60/60/24+'Options (2)'!G27*'Options (2)'!F26)*24*365,"") -> 0 | I15: =IF(Markers!$L$2=TRUE,Markers!G56,"") -> 730 | J15: =IF(Markers!$L$2=TRUE,H15+I15,"") -> 730 | K15: =IF(Markers!$L$2=TRUE,J15/(herdex*yieldex)*100,"") -> 
A16: Difference from budget | E16: =E14-E15 -> 0 | G16: Difference | H16: =IF(Markers!$L$2=TRUE,H14-H15,"") -> 0 | I16: =IF(Markers!$L$2=TRUE,I14-I15,"") -> 73 | J16: =IF(Markers!$L$2=TRUE,J14-J15,"") -> 73 | K16: =IF(Markers!$L$2=TRUE,K14-K15,"") -> 
A19: =IF(E16>0,"Action points","") ->  | G19: =IF(ISNUMBER(K16),"Action points","") -> 
A21: =IF(E16>0,"You have exceeded your budget","") ->  | G21: =IF(ISNUMBER(K16),"You have increased your parlour running costs","") -> 
A22: =IF(E16>0,"Consider cheaper options","") ->  | G22: =IF(ISNUMBER(K16),"Consider increasing milk output to dilute the increased cost","") -> 

Sheet Data entry (4)
A1: Slurry Wizard ~ Data entry
A5: Total farmable area | B5: 0 | C5: hectares
A6: Telephone STD code | B6: 01262
A7: Cows in herd | B7: ='Dairy Wizard'!B4 -> 0 | C7: cows
A8: Cows in milk | B8: 80 | C8: cows
A9: Depreciation buildings | B9: ='Dairy Wizard'!B6 -> 5 | C9: %
A10: Depreciation machinery | B10: ='Dairy Wizard'!B7 -> 10 | C10: %
A11: Interest rate | B11: ='Dairy Wizard'!B8 -> 5 | C11: %
A12: Electricity cost | B12: ='Dairy Wizard'!B9 -> 10 | C12: p/kW hour
A13: Water cost | B13: ='Dairy Wizard'!B10 -> 1 | C13: £/cubic metre
A14: Slurry spreading cost | B14: 1.7 | C14: £/cubic metre
A15: Water storage cost | B15: 0.45 | C15: £/cubic metre
A16: Divert water cost | B16: 4.6 | C16: £/square metre
A17: Roofing cost | B17: 74 | C17: £/square metre
A18: Slurry storage cost | B18: 35 | C18: £/cubic metre
A20: Slurry storage capacity
B22: Length m | C22: Width m | D22: Circumference of circular store m | E22: Depth m (less freeboard) | F22: Capacity m3 | G22: Area m2 | H22: Tick if Covered Store
A23: Store 1 | F23: =ROUND(B23*C23*E23,0) -> 0 | G23: =IF($S23=TRUE,"",ROUND(B23*C23,0)) -> 0 | S23: FALSE
A24: Store 2 | F24: =ROUND(B24*C24*E24,0) -> 0 | G24: =IF($S24=TRUE,"",ROUND(B24*C24,0)) -> 0 | S24: FALSE
A25: Store 3 | F25: =ROUND(B25*C25*E25,0) -> 0 | G25: =IF($S25=TRUE,"",ROUND(B25*C25,0)) -> 0 | S25: FALSE
A26: Store 4 | F26: =ROUND(B26*C26*E26,0) -> 0 | G26: =IF($S26=TRUE,"",ROUND(B26*C26,0)) -> 0 | S26: FALSE
A27: store 5 | F27: =ROUND(I27*E27,0) -> 0 | G27: =IF($S27=TRUE,"",I27) -> 0 | I27: =ROUND(($J27*$J27)*3.142,0) -> 0 | J27: =(D27/3.142)/2 -> 0 | S27: FALSE
A28: store 6 | F28: =ROUND(I28*E28,0) -> 0 | G28: =IF($S28=TRUE,"",I28) -> 0 | I28: =ROUND(($J28*$J28)*3.142,0) -> 0 | J28: =(D28/3.142)/2 -> 0 | S28: FALSE
A29: Total existing capacity | F29: =SUM(F23:F28) -> 0 | G29: =SUM(G23:G28) -> 0
A31: Freeboard : reduce the depth to allow for freeboard (0.3 metres for a steel or concrete store and 0.75 metres for a lagoon)
A33: Slurry separator
A35: Do you operate a separator | B35: No | C35: For the slurry entering the store(s)
A36: % reduction in slurry | B36: 20 | C36: Adjust the % to reflect the average reduction in slurry volume
A38: Parlour washings to slurry store
A40: Parlour washings to slurry store | B40: Yes
A41: High volume washing
A42: Low volume washing
A43: Own value
A45: Uncovered dirty yard area to slurry store
B47: Length m | C47: Width m | D47: Area m2
A48: Yard 1 | D48: =B48*C48 -> 0
A49: Yard 2 | D49: 0
A50: Yard 3 | D50: 0
A51: Yard 4 | D51: 0
A52: Yard 5 | D52: 0
A53: Yard 6 | D53: 0
A54: Yard 7 | D54: 0
A55: Yard 8 | D55: 0
A56: Yard 9 | D56: 0
A57: Yard 10 | D57: 0
A58: Yard 11 | D58: 0
A59: Yard 12 | D59: 0
A60: Total yard area | D60: =SUM(D48:D59) -> 0
A62: Roof water area to slurry store
B64: Length m | C64: Width m | D64: Area m2
A65: Roof 1 | D65: =B65*C65 -> 0
A66: Roof 2 | D66: 0
A67: Roof 3 | D67: 0
A68: Roof 4 | D68: 0
A69: Roof 5 | D69: 0
A70: Roof 6 | D70: 0
A71: Roof 7 | D71: 0
A72: Roof 8 | D72: 0
A73: Roof 9 | D73: 0
A74: Roof 10 | D74: 0
A75: Total roof area | D75: =SUM(D65:D74) -> 0

Sheet Livestock
A1: Livestock data entry ~ Enter all livestock below
A5: Livestock | B5: Age | C5: Liveweight/milk yield | D5: Number | E5: % collected as slurry | F5: Daily excreta | G5: Total collected as slurry | H5: Annual N output kg/year | I5: Total N
I6: (kg/year)
A7: Cattle
A8: Dairy Cow | B8: After first calf | C8: High (>9000) | E8: 1 | F8: 64 | G8: =D8*E8*F8 -> 0 | H8: 115 | I8: =SUM(D8*H8) -> 0
A9: Dairy Cow | B9: After first calf | C9: Medium (6000-9000) | E9: 0.85 | F9: 53 | G9: 0 | H9: 101 | I9: 0
A10: Dairy Cow | B10: After first calf | C10: Low (<6000) | E10: 1 | F10: 42 | G10: 0 | H10: 77 | I10: 0
A11: Dairy heifer replacement | B11: 13 mths to calving | E11: 1 | F11: 40 | G11: 0 | H11: 61 | I11: 0
A12: Dairy heifer replacement | B12: 3<13 months | E12: 1 | F12: 20 | G12: 0 | H12: 29 | I12: 0
A13: Beef Suckler | B13: >25 months | C13: Large (>500) | E13: 1 | F13: 45 | G13: 0 | H13: 83 | I13: 0
A14: Beef Suckler | B14: >25 months | C14: Small (<500) | E14: 1 | F14: 32 | G14: 0 | H14: 61 | I14: 0
A15: Grower | B15: >25 months | E15: 1 | F15: 32 | G15: 0 | H15: 50 | I15: 0
A16: Grower | B16: 13<25 months | E16: 1 | F16: 26 | G16: 0 | H16: 50 | I16: 0
A17: Grower | B17: 3<13 months | E17: 1 | F17: 20 | G17: 0 | H17: 34 | I17: 0
A18: Bull Beef | B18: >3 months | E18: 1 | F18: 26 | G18: 0 | H18: 54 | I18: 0
A19: Bulls for breeding | B19: >25 months | E19: 1 | F19: 26 | G19: 0 | H19: 48 | I19: 0
A20: Bulls for breeding | B20: 3<25 months | E20: 1 | F20: 26 | G20: 0 | H20: 50 | I20: 0
A21: Calf | B21: < 3 months | E21: 1 | F21: 7 | G21: 0 | H21: 8.4 | I21: 0
A22: Pigs
A23: 1 sow place inc. litters | B23: Litter up to 7kg | C23: with syn amino acid | E23: 1 | F23: 11 | G23: =D23*E23*F23 -> 0 | H23: 16 | I23: =SUM(D23*H23) -> 0
A24: 1 sow place inc. litters | B24: Litter up to 7kg | C24: no syn amino acid | E24: 1 | F24: 11 | G24: 0 | H24: 18 | I24: 0
A25: Weaner place | C25: 7 to 13kg | E25: 1 | F25: 1 | G25: 0 | H25: 1 | I25: 0
A26: Weaner place | C26: 13 to 31kg | E26: 1 | F26: 1.67 | G26: 0 | H26: 4.2 | I26: 0
A27: Grower place | B27: Dry fed | C27: 31 to 66kg | E27: 1 | F27: 3.33 | G27: 0 | H27: 7.7 | I27: 0
A28: Grower place | B28: Liquid fed | C28: 31 to 66kg | E28: 1 | F28: 6 | G28: 0 | H28: 7.7 | I28: 0
A29: Finisher place | B29: Dry fed | C29: >66kg | E29: 1 | F29: 4.33 | G29: 0 | H29: 10.6 | I29: 0
A30: Finisher place | B30: Liquid fed | C30: >66kg | E30: 1 | F30: 8.67 | G30: 0 | H30: 10.6 | I30: 0
A31: Maiden gilt place | C31: >66kg | E31: 1 | F31: 4.33 | G31: 0 | H31: 11.1 | I31: 0
A32: Boar | B32: 66kg to 150kg | E32: 1 | F32: 5 | G32: 0 | H32: 12 | I32: 0
A33: Boar | B33: Above 150kg | E33: 1 | F33: 8.67 | G33: 0 | H33: 17.5 | I33: 0
A34: Sheep
A35: Ewe | B35: Lamb < 6 months | C35: <60kg | E35: 0 | F35: 3.33 | G35: =D35*E35*F35 -> 0 | H35: 7.6 | I35: =SUM(D35*H35) -> 0
A36: Ewe | B36: Lamb < 6 months | C36: >60kg | E36: 0 | F36: 5 | G36: =D36*E36*F36 -> 0 | H36: 11.9 | I36: =SUM(D36*H36) -> 0
A37: Lamb | B37: 6 to 9 months | E37: 0 | F37: 1.67 | G37: =D37*E37*F37 -> 0 | H37: 0.5 | I37: =SUM(D37*H37) -> 0
A38: Lamb | B38: > 9 months | E38: 0 | F38: 1.67 | G38: =D38*E38*F38 -> 0 | H38: 0.7 | I38: =SUM(D38*H38) -> 0
A39: Goats
A40: Goat | E40: 0 | F40: 3.67 | G40: =D40*E40*F40 -> 0 | H40: 15 | I40: =SUM(D40*H40) -> 0
A41: Deer
A42: Breeding hinds | E42: 0 | F42: 5 | G42: =D42*E42*F42 -> 0 | H42: 15.2 | I42: =SUM(D42*H42) -> 0
A43: Other deer | E43: 0 | F43: 3.67 | G43: =D43*E43*F43 -> 0 | H43: 12 | I43: =SUM(D43*H43) -> 0
A44: Horses
A45: Horse | E45: 0 | F45: 24.67 | G45: =D45*E45*F45 -> 0 | H45: 21 | I45: =SUM(D45*H45) -> 0
A46: Layers
A47: Replacement layer pullets | B47: <17 weeks | E47: 0 | F47: 0.0367 | G47: =D47*E47*F47 -> 0 | H47: 0.21 | I47: =SUM(D47*H47) -> 0
A48: Laying hens - cages | B48: >17 weeks | E48: 0 | F48: 0.1167 | G48: =D48*E48*F48 -> 0 | H48: 0.4 | I48: =SUM(D48*H48) -> 0
A49: Laying hens - free range | B49: >17 weeks | E49: 0 | F49: 0.099 | G49: =D49*E49*F49 -> 0 | H49: 0.46 | I49: =SUM(D49*H49) -> 0
A50: Broilers
A51: Broiler places | E51: 0 | F51: 0.05 | G51: =D51*E51*F51 -> 0 | H51: 0.33 | I51: =SUM(D51*H51) -> 0
A52: Broiler breeder pullets | B52: <25 weeks | E52: 0 | F52: 0.0367 | G52: =D52*E52*F52 -> 0 | H52: 0.29 | I52: =SUM(D52*H52) -> 0
A53: Broiler breeders | B53: >25 weeks | E53: 0 | F53: 0.113 | G53: =D53*E53*F53 -> 0 | H53: 0.7 | I53: =SUM(D53*H53) -> 0
A54: Turkeys
A55: Male | E55: 0 | F55: 0.143 | G55: =D55*E55*F55 -> 0 | H55: 1.23 | I55: =SUM(D55*H55) -> 0
A56: Female | E56: 0 | F56: 0.1067 | G56: =D56*E56*F56 -> 0 | H56: 0.91 | I56: =SUM(D56*H56) -> 0
A57: Other
A58: Ducks | E58: 0 | F58: 0.0833 | G58: =D58*E58*F58 -> 0 | H58: 0.75 | I58: =SUM(D58*H58) -> 0
A59: Ostriches | E59: 0 | F59: 0.0014 | G59: =D59*E59*F59 -> 0 | H59: 1.4 | I59: =SUM(D59*H59) -> 0
A60: TOTAL | G60: =SUM(G8:G59) -> 0 | I60: =SUM(I8:I59) -> 0
A62: Farm Nitogen Loading
A64: Kg Nitrogen per Ha | B64: =IF(ISNUMBER(I60/'Data entry (4)'!B5),I60/'Data entry (4)'!B5,"") -> 
A66: This is the nitrogen loading BEFORE the import or export of manure

Sheet Slurry report
A1: Slurry Report
A5: Cubic metres | C5: Oct | D5: Nov | E5: Dec | F5: Jan | G5: Feb | H5: Mar | I5: Apr | J5: May | K5: Jun | L5: Jul | M5: Aug | N5: Sep | O5: Total
A6: Days | C6: 31 | D6: 30 | E6: 31 | F6: 31 | G6: 28 | H6: 31 | I6: 30 | J6: 31 | K6: 30 | L6: 31 | M6: 31 | N6: 30 | O6: =SUM(C6:N6) -> 365
A7: Total excreta as slurry | C7: =(Livestock!$G$60/1000)*C6 -> 0 | D7: =(Livestock!$G$60/1000)*D6 -> 0 | E7: =(Livestock!$G$60/1000)*E6 -> 0 | F7: =(Livestock!$G$60/1000)*F6 -> 0 | G7: =(Livestock!$G$60/1000)*(G6+1) -> 0 | H7: =(Livestock!$G$60/1000)*H6 -> 0 | I7: =(Livestock!$G$60/1000)*I6 -> 0 | J7: =(Livestock!$G$60/1000)*J6 -> 0 | K7: =(Livestock!$G$60/1000)*K6 -> 0 | L7: =(Livestock!$G$60/1000)*L6 -> 0 | M7: =(Livestock!$G$60/1000)*M6 -> 0 | N7: =(Livestock!$G$60/1000)*N6 -> 0 | O7: =SUM(C7:N7) -> 0
A8: % excreta to slurry store | C8: 50 | D8: 100 | E8: 100 | F8: 100 | G8: 100 | H8: 100 | I8: 20 | J8: 20 | K8: 20 | L8: 20 | M8: 20 | N8: 20
A9: Excreta to slurry store | C9: =C7*C8/100 -> 0 | D9: 0 | E9: 0 | F9: 0 | G9: 0 | H9: 0 | I9: 0 | J9: 0 | K9: 0 | L9: 0 | M9: 0 | N9: 0 | O9: =SUM(C9:N9) -> 0
A10: Slurry separated | B10: =CONCATENATE('Data entry (4)'!$B$35,IF('Data entry (4)'!$B$35="no",,CONCATENATE(" / ",'Data entry (4)'!$B$36,"%"))) -> No | C10: =IF($B$10="no",0,(C9+C11+C13+C14+C15)*('Data entry (4)'!$B$36%)) -> 0 | D10: =IF($B$10="no",0,(D9+D11+D13+D14+D15)*('Data entry (4)'!$B$36%)) -> 0 | E10: =IF($B$10="no",0,(E9+E11+E13+E14+E15)*('Data entry (4)'!$B$36%)) -> 0 | F10: =IF($B$10="no",0,(F9+F11+F13+F14+F15)*('Data entry (4)'!$B$36%)) -> 0 | G10: =IF($B$10="no",0,(G9+G11+G13+G14+G15)*('Data entry (4)'!$B$36%)) -> 0 | H10: =IF($B$10="no",0,(H9+H11+H13+H14+H15)*('Data entry (4)'!$B$36%)) -> 0 | I10: =IF($B$10="no",0,(I9+I11+I13+I14+I15)*('Data entry (4)'!$B$36%)) -> 0 | J10: =IF($B$10="no",0,(J9+J11+J13+J14+J15)*('Data entry (4)'!$B$36%)) -> 0 | K10: =IF($B$10="no",0,(K9+K11+K13+K14+K15)*('Data entry (4)'!$B$36%)) -> 0 | L10: =IF($B$10="no",0,(L9+L11+L13+L14+L15)*('Data entry (4)'!$B$36%)) -> 0 | M10: =IF($B$10="no",0,(M9+M11+M13+M14+M15)*('Data entry (4)'!$B$36%)) -> 0 | N10: =IF($B$10="no",0,(N9+N11+N13+N14+N15)*('Data entry (4)'!$B$36%)) -> 0 | O10: 0
A11: Parlour washings | B11: ='Data entry (4)'!B40 -> Yes | C11: =IF($B$11="yes",IF('Data entry (4)'!$B$43="",IF('Data entry (4)'!$B$41=1,30,20),'Data entry (4)'!$B$43),0)*'Data entry (4)'!$B$8*31/10^3 -> 49.6 | D11: =IF($B$11="yes",IF('Data entry (4)'!$B$43="",IF('Data entry (4)'!$B$41=1,30,20),'Data entry (4)'!$B$43),0)*'Data entry (4)'!$B$8*30/10^3 -> 48 | E11: =IF($B$11="yes",IF('Data entry (4)'!$B$43="",IF('Data entry (4)'!$B$41=1,30,20),'Data entry (4)'!$B$43),0)*'Data entry (4)'!$B$8*31/10^3 -> 49.6 | F11: =IF($B$11="yes",IF('Data entry (4)'!$B$43="",IF('Data entry (4)'!$B$41=1,30,20),'Data entry (4)'!$B$43),0)*'Data entry (4)'!$B$8*31/10^3 -> 49.6 | G11: =IF($B$11="yes",IF('Data entry (4)'!$B$43="",IF('Data entry (4)'!$B$41=1,30,20),'Data entry (4)'!$B$43),0)*'Data entry (4)'!$B$8*28/10^3 -> 44.8 | H11: =IF($B$11="yes",IF('Data entry (4)'!$B$43="",IF('Data entry (4)'!$B$41=1,30,20),'Data entry (4)'!$B$43),0)*'Data entry (4)'!$B$8*31/10^3 -> 49.6 | I11: =IF($B$11="yes",IF('Data entry (4)'!$B$43="",IF('Data entry (4)'!$B$41=1,30,20),'Data entry (4)'!$B$43),0)*'Data entry (4)'!$B$8*30/10^3 -> 48 | J11: =IF($B$11="yes",IF('Data entry (4)'!$B$43="",IF('Data entry (4)'!$B$41=1,30,20),'Data entry (4)'!$B$43),0)*'Data entry (4)'!$B$8*31/10^3 -> 49.6 | K11: =IF($B$11="yes",IF('Data entry (4)'!$B$43="",IF('Data entry (4)'!$B$41=1,30,20),'Data entry (4)'!$B$43),0)*'Data entry (4)'!$B$8*30/10^3 -> 48 | L11: =IF($B$11="yes",IF('Data entry (4)'!$B$43="",IF('Data entry (4)'!$B$41=1,30,20),'Data entry (4)'!$B$43),0)*'Data entry (4)'!$B$8*31/10^3 -> 49.6 | M11: =IF($B$11="yes",IF('Data entry (4)'!$B$43="",IF('Data entry (4)'!$B$41=1,30,20),'Data entry (4)'!$B$43),0)*'Data entry (4)'!$B$8*31/10^3 -> 49.6 | N11: =IF($B$11="yes",IF('Data entry (4)'!$B$43="",IF('Data entry (4)'!$B$41=1,30,20),'Data entry (4)'!$B$43),0)*'Data entry (4)'!$B$8*30/10^3 -> 48 | O11: 584
A12: Rainfall (m) | B12: =VLOOKUP('Data entry (4)'!B6,rainfall,14,FALSE)/1000 -> 0.683 | C12: =VLOOKUP('Data entry (4)'!$B$6,rainfall,MATCH(C5,Rainfall!$A$3:$M$3,0),FALSE)/1000 -> 0.058 | D12: =VLOOKUP('Data entry (4)'!$B$6,rainfall,MATCH(D5,Rainfall!$A$3:$M$3,0),FALSE)/1000 -> 0.069 | E12: =VLOOKUP('Data entry (4)'!$B$6,rainfall,MATCH(E5,Rainfall!$A$3:$M$3,0),FALSE)/1000 -> 0.071 | F12: =VLOOKUP('Data entry (4)'!$B$6,rainfall,MATCH(F5,Rainfall!$A$3:$M$3,0),FALSE)/1000 -> 0.062 | G12: =VLOOKUP('Data entry (4)'!$B$6,rainfall,MATCH(G5,Rainfall!$A$3:$M$3,0),FALSE)/1000 -> 0.045 | H12: =VLOOKUP('Data entry (4)'!$B$6,rainfall,MATCH(H5,Rainfall!$A$3:$M$3,0),FALSE)/1000 -> 0.054 | I12: =VLOOKUP('Data entry (4)'!$B$6,rainfall,MATCH(I5,Rainfall!$A$3:$M$3,0),FALSE)/1000 -> 0.05 | J12: =VLOOKUP('Data entry (4)'!$B$6,rainfall,MATCH(J5,Rainfall!$A$3:$M$3,0),FALSE)/1000 -> 0.053 | K12: =VLOOKUP('Data entry (4)'!$B$6,rainfall,MATCH(K5,Rainfall!$A$3:$M$3,0),FALSE)/1000 -> 0.052 | L12: =VLOOKUP('Data entry (4)'!$B$6,rainfall,MATCH(L5,Rainfall!$A$3:$M$3,0),FALSE)/1000 -> 0.052 | M12: =VLOOKUP('Data entry (4)'!$B$6,rainfall,MATCH(M5,Rainfall!$A$3:$M$3,0),FALSE)/1000 -> 0.063 | N12: =VLOOKUP('Data entry (4)'!$B$6,rainfall,MATCH(N5,Rainfall!$A$3:$M$3,0),FALSE)/1000 -> 0.054 | O12: 0.683
A13: Yard run off area to slurry store | B13: ='Data entry (4)'!D60 -> 0 | C13: =$B$13*C12 -> 0 | D13: 0 | E13: 0 | F13: 0 | G13: 0 | H13: 0 | I13: 0 | J13: 0 | K13: 0 | L13: 0 | M13: 0 | N13: 0 | O13: 0
A14: Slurry store area | B14: ='Data entry (4)'!G29 -> 0 | C14: =$B$14*C12 -> 0 | D14: 0 | E14: 0 | F14: 0 | G14: 0 | H14: 0 | I14: 0 | J14: 0 | K14: 0 | L14: 0 | M14: 0 | N14: 0 | O14: 0
A15: Roof water area to store | B15: ='Data entry (4)'!D75 -> 0 | C15: =$B$15*C12 -> 0 | D15: 0 | E15: 0 | F15: 0 | G15: 0 | H15: 0 | I15: 0 | J15: 0 | K15: 0 | L15: 0 | M15: 0 | N15: 0 | O15: 0
A16: Total cubic metres | C16: =C9-C10+C11+C13+C14+C15 -> 49.6 | D16: =D9-D10+D11+D13+D14+D15 -> 48 | E16: 49.6 | F16: 49.6 | G16: 44.8 | H16: 49.6 | I16: 48 | J16: 49.6 | K16: 48 | L16: 49.6 | M16: 49.6 | N16: 48 | O16: =O9-O10+O11+O13+O14+O15 -> 584
A17: Cumulative production | C17: =C16 -> 49.6 | D17: =C17+D16 -> 97.6 | E17: 147.2 | F17: 196.8 | G17: 241.6 | H17: 291.2 | I17: 339.2 | J17: 388.8 | K17: 436.8 | L17: 486.4 | M17: 536 | N17: 584
A18: Total storage capacity | B18: ='Data entry (4)'!F29 -> 0 | C18: =B18 -> 0 | D18: 0 | E18: 0 | F18: 0 | G18: 0 | H18: 0 | I18: 0 | J18: 0 | K18: 0 | L18: 0 | M18: 0 | N18: 0
A19: Capacity less production | C19: =C18-C17 -> -49.6 | D19: -97.6 | E19: -147.2 | F19: -196.8 | G19: -241.6 | H19: -291.2 | I19: -339.2 | J19: -388.8 | K19: -436.8 | L19: -486.4 | M19: -536 | N19: -584
A21: Cost/Benefits | B21: Net Benefit £/year | G21: Action points
A22: Divert roof water | B22: =(O15*'Data entry (4)'!B14)+((SUM(C15:G15)*'Data entry (4)'!B18)*('Data entry (4)'!B9/100+'Data entry (4)'!B11/100))-((B15*'Data entry (4)'!B16)*('Data entry (4)'!B9/100+'Data entry (4)'!B11/100)) -> 0 | G22: =IF($G$19<0,"You do not have enough slurry storage","") -> You do not have enough slurry storage
A23: Divert roof water & harvest | B23: =B22+(O15*'Data entry (4)'!B13)-((O15*'Data entry (4)'!B15)*('Data entry (4)'!B9/100+'Data entry (4)'!B11/100)) -> 0 | G23: =IF(AND($G$19<0,$B$11="yes"),"Consider diverting parlour washings to a separate store","") -> Consider diverting parlour washings to a separate store
A24: Roof dirty yard | B24: =(O13*'Data entry (4)'!B14)+((SUM(C13:G13)*'Data entry (4)'!B18)*('Data entry (4)'!B9/100+'Data entry (4)'!B11/100))-((B13*'Data entry (4)'!B17)*('Data entry (4)'!B9/100+'Data entry (4)'!B11/100)) -> 0 | G24: =IF(AND($G$19<0,$B$15>0),"Consider collecting roof water or diverting to a clean drain","") -> 
A25: Roof dirty yard & harvest water | B25: =B24+(O13*'Data entry (4)'!B13)-((O13*'Data entry (4)'!B15)*('Data entry (4)'!B9/100+'Data entry (4)'!B11/100)) -> 0 | G25: =IF(AND($G$19<0,$B$10="no"),"Consider slurry separation ~ see slurry strategies booklet","") -> Consider slurry separation ~ see slurry strategies booklet
A27: =CONCATENATE("The cost/benefit is based on a slurry storage cost of £",'Data entry (4)'!B18,"/cubic metre") -> The cost/benefit is based on a slurry storage cost of £35/cubic metre

Sheet Rainfall (hidden)
A1: MANNER rainfall data
A3: STD | B3: Jan | C3: Feb | D3: Mar | E3: Apr | F3: May | G3: Jun | H3: Jul | I3: Aug | J3: Sep | K3: Oct | L3: Nov | M3: Dec | N3: Total | O3: Manner total
A4: 0113 | B4: 77 | C4: 61 | D4: 67 | E4: 62 | F4: 59 | G4: 61 | H4: 59 | I4: 72 | J4: 71 | K4: 73 | L4: 77 | M4: 78 | N4: =SUM(B4:M4) -> 817 | O4: 815
A5: 0114 | B5: 92 | C5: 70 | D5: 77 | E5: 69 | F5: 65 | G5: 62 | H5: 54 | I5: 66 | J5: 67 | K5: 74 | L5: 87 | M5: 92 | N5: 875 | O5: 875
A6: 0115 | B6: 53 | C6: 46 | D6: 48 | E6: 48 | F6: 50 | G6: 55 | H6: 48 | I6: 59 | J6: 49 | K6: 50 | L6: 54 | M6: 59 | N6: 619 | O6: 620
A7: 0116 | B7: 53 | C7: 45 | D7: 49 | E7: 50 | F7: 52 | G7: 60 | H7: 47 | I7: 61 | J7: 50 | K7: 50 | L7: 55 | M7: 59 | N7: 631 | O7: 630
A8: 0117 | B8: 85 | C8: 61 | D8: 68 | E8: 55 | F8: 64 | G8: 65 | H8: 61 | I8: 74 | J8: 82 | K8: 83 | L8: 85 | M8: 92 | N8: 875 | O8: 875
A9: 0118 | B9: 69 | C9: 48 | D9: 58 | E9: 49 | F9: 54 | G9: 53 | H9: 43 | I9: 56 | J9: 60 | K9: 63 | L9: 68 | M9: 74 | N9: 695 | O9: 695
A10: 01200 | B10: 131 | C10: 79 | D10: 102 | E10: 78 | F10: 81 | G10: 96 | H10: 94 | I10: 124 | J10: 129 | K10: 147 | L10: 139 | M10: 137 | N10: 1337 | O10: 1337
A11: 01202 | B11: 93 | C11: 67 | D11: 70 | E11: 49 | F11: 54 | G11: 52 | H11: 42 | I11: 55 | J11: 70 | K11: 87 | L11: 90 | M11: 95 | N11: 824 | O11: 823
A12: 01204 | B12: 129 | C12: 84 | D12: 103 | E12: 80 | F12: 86 | G12: 97 | H12: 96 | I12: 125 | J12: 124 | K12: 142 | L12: 137 | M12: 137 | N12: 1340 | O12: 1338
A13: 01205 | B13: 51 | C13: 39 | D13: 47 | E13: 47 | F13: 50 | G13: 54 | H13: 46 | I13: 59 | J13: 48 | K13: 46 | L13: 56 | M13: 52 | N13: 595 | O13: 594
A14: 01206 | B14: 48 | C14: 33 | D14: 43 | E14: 40 | F14: 43 | G14: 47 | H14: 44 | I14: 47 | J14: 48 | K14: 49 | L14: 56 | M14: 51 | N14: 549 | O14: 548
A15: 01207 | B15: 72 | C15: 49 | D15: 57 | E15: 52 | F15: 60 | G15: 56 | H15: 57 | I15: 76 | J15: 62 | K15: 59 | L15: 69 | M15: 65 | N15: 734 | O15: 732
A16: 01208 | B16: 112 | C16: 78 | D16: 82 | E16: 55 | F16: 56 | G16: 59 | H16: 59 | I16: 74 | J16: 81 | K16: 100 | L16: 111 | M16: 111 | N16: 978 | O16: 978
A17: 01209 | B17: 136 | C17: 103 | D17: 100 | E17: 64 | F17: 67 | G17: 64 | H17: 61 | I17: 74 | J17: 85 | K17: 113 | L17: 126 | M17: 137 | N17: 1130 | O17: 1129
A18: 0121 | B18: 71 | C18: 54 | D18: 64 | E18: 60 | F18: 66 | G18: 61 | H18: 54 | I18: 72 | J18: 65 | K18: 65 | L18: 68 | M18: 79 | N18: 779 | O18: 780
A19: 01223 | B19: 44 | C19: 32 | D19: 41 | E19: 43 | F19: 48 | G19: 48 | H19: 47 | I19: 53 | J19: 46 | K19: 47 | L19: 50 | M19: 49 | N19: 548 | O19: 547
A20: 01224 | B20: 83 | C20: 53 | D20: 58 | E20: 53 | F20: 62 | G20: 53 | H20: 65 | I20: 75 | J20: 69 | K20: 77 | L20: 73 | M20: 71 | N20: 792 | O20: 791
A21: 01225 | B21: 94 | C21: 69 | D21: 78 | E21: 59 | F21: 69 | G21: 63 | H21: 62 | I21: 73 | J21: 82 | K21: 81 | L21: 90 | M21: 102 | N21: 922 | O21: 921
A22: 01226 | B22: 78 | C22: 62 | D22: 66 | E22: 63 | F22: 58 | G22: 58 | H22: 48 | I22: 61 | J22: 58 | K22: 63 | L22: 76 | M22: 79 | N22: 770 | O22: 769
A23: 01227 | B23: 65 | C23: 45 | D23: 52 | E23: 48 | F23: 45 | G23: 48 | H23: 50 | I23: 53 | J23: 61 | K23: 71 | L23: 75 | M23: 66 | N23: 679 | O23: 679
A24: 01228 | B24: 73 | C24: 44 | D24: 58 | E24: 43 | F24: 55 | G24: 60 | H24: 66 | I24: 78 | J24: 83 | K24: 82 | L24: 76 | M24: 68 | N24: 786 | O24: 784
A25: 01229 | B25: 97 | C25: 65 | D25: 81 | E25: 61 | F25: 61 | G25: 64 | H25: 73 | I25: 96 | J25: 100 | K25: 116 | L25: 104 | M25: 102 | N25: 1020 | O25: 1020
A26: 01233 | B26: 77 | C26: 50 | D26: 58 | E26: 49 | F26: 49 | G26: 49 | H26: 49 | I26: 51 | J26: 64 | K26: 80 | L26: 84 | M26: 74 | N26: 734 | O26: 735
A27: 01234 | B27: 45 | C27: 35 | D27: 46 | E27: 46 | F27: 48 | G27: 50 | H27: 46 | I27: 53 | J27: 47 | K27: 51 | L27: 51 | M27: 54 | N27: 572 | O27: 571
A28: 01235 | B28: 70 | C28: 50 | D28: 62 | E28: 49 | F28: 57 | G28: 57 | H28: 46 | I28: 62 | J28: 62 | K28: 64 | L28: 69 | M28: 76 | N28: 724 | O28: 725
A29: 01236 | B29: 111 | C29: 74 | D29: 91 | E29: 58 | F29: 68 | G29: 67 | H29: 69 | I29: 97 | J29: 116 | K29: 119 | L29: 115 | M29: 106 | N29: 1091 | O29: 1091
A30: 01237 | B30: 113 | C30: 79 | D30: 84 | E30: 61 | F30: 61 | G30: 65 | H30: 69 | I30: 83 | J30: 98 | K30: 115 | L30: 123 | M30: 119 | N30: 1070 | O30: 1070
A31: 01239 | B31: 138 | C31: 91 | D31: 98 | E31: 75 | F31: 73 | G31: 73 | H31: 67 | I31: 90 | J31: 107 | K31: 143 | L31: 136 | M31: 147 | N31: 1238 | O31: 1236
A32: 01241 | B32: 84 | C32: 57 | D32: 64 | E32: 53 | F32: 64 | G32: 59 | H32: 64 | I32: 78 | J32: 77 | K32: 79 | L32: 72 | M32: 72 | N32: 823 | O32: 822
A33: 01242 | B33: 67 | C33: 52 | D33: 59 | E33: 52 | F33: 61 | G33: 62 | H33: 54 | I33: 67 | J33: 66 | K33: 61 | L33: 65 | M33: 78 | N33: 744 | O33: 742
A34: 01243 | B34: 75 | C34: 52 | D34: 60 | E34: 50 | F34: 49 | G34: 46 | H34: 43 | I34: 53 | J34: 64 | K34: 76 | L34: 80 | M34: 77 | N34: 725 | O34: 725
A35: 01244 | B35: 63 | C35: 49 | D35: 55 | E35: 50 | F35: 57 | G35: 54 | H35: 46 | I35: 56 | J35: 59 | K35: 62 | L35: 79 | M35: 73 | N35: 703 | O35: 703
A36: 01245 | B36: 54 | C36: 37 | D36: 48 | E36: 45 | F36: 46 | G36: 50 | H36: 50 | I36: 54 | J36: 51 | K36: 54 | L36: 58 | M36: 57 | N36: 604 | O36: 603
A37: 01246 | B37: 111 | C37: 81 | D37: 89 | E37: 75 | F37: 74 | G37: 74 | H37: 64 | I37: 81 | J37: 84 | K37: 94 | L37: 104 | M37: 110 | N37: 1041 | O37: 1039
A38: 01248 | B38: 109 | C38: 74 | D38: 87 | E38: 63 | F38: 65 | G38: 67 | H38: 76 | I38: 97 | J38: 101 | K38: 125 | L38: 130 | M38: 124 | N38: 1118 | O38: 1117
A39: 01249 | B39: 67 | C39: 50 | D39: 59 | E39: 48 | F39: 58 | G39: 56 | H39: 51 | I39: 60 | J39: 66 | K39: 63 | L39: 65 | M39: 76 | N39: 719 | O39: 719
A40: 01250 | B40: 84 | C40: 58 | D40: 62 | E40: 43 | F40: 63 | G40: 62 | H40: 66 | I40: 78 | J40: 80 | K40: 82 | L40: 71 | M40: 76 | N40: 825 | O40: 825
A41: 01252 | B41: 73 | C41: 49 | D41: 60 | E41: 51 | F41: 58 | G41: 50 | H41: 48 | I41: 54 | J41: 64 | K41: 69 | L41: 72 | M41: 76 | N41: 724 | O41: 722
A42: 01253 | B42: 79 | C42: 54 | D42: 64 | E42: 50 | F42: 51 | G42: 59 | H42: 59 | I42: 78 | J42: 87 | K42: 95 | L42: 91 | M42: 88 | N42: 855 | O42: 854
A43: 01254 | B43: 108 | C43: 68 | D43: 88 | E43: 73 | F43: 77 | G43: 87 | H43: 83 | I43: 107 | J43: 112 | K43: 123 | L43: 116 | M43: 114 | N43: 1156 | O43: 1155
A44: 01255 | B44: 51 | C44: 35 | D44: 45 | E44: 42 | F44: 43 | G44: 46 | H44: 45 | I44: 48 | J44: 49 | K44: 50 | L44: 58 | M44: 53 | N44: 565 | O44: 565
A45: 01256 | B45: 93 | C45: 62 | D45: 74 | E45: 56 | F45: 64 | G45: 61 | H45: 57 | I45: 66 | J45: 78 | K45: 85 | L45: 90 | M45: 97 | N45: 883 | O45: 881
A46: 01257 | B46: 91 | C46: 61 | D46: 77 | E46: 61 | F46: 65 | G46: 75 | H46: 72 | I46: 94 | J46: 94 | K46: 107 | L46: 102 | M46: 99 | N46: 998 | O46: 997
A47: 01258 | B47: 113 | C47: 83 | D47: 85 | E47: 59 | F47: 66 | G47: 57 | H47: 50 | I47: 69 | J47: 86 | K47: 102 | L47: 105 | M47: 116 | N47: 991 | O47: 991
A48: 01259 | B48: 102 | C48: 70 | D48: 82 | E48: 52 | F48: 66 | G48: 67 | H48: 72 | I48: 90 | J48: 107 | K48: 103 | L48: 103 | M48: 103 | N48: 1017 | O48: 1016
A49: 01260 | B49: 69 | C49: 48 | D49: 58 | E49: 54 | F49: 63 | G49: 69 | H49: 61 | I49: 72 | J49: 70 | K49: 71 | L49: 76 | M49: 71 | N49: 782 | O49: 781
A50: 01261 | B50: 64 | C50: 45 | D50: 55 | E50: 44 | F50: 51 | G50: 53 | H50: 61 | I50: 79 | J50: 71 | K50: 70 | L50: 78 | M50: 67 | N50: 738 | O50: 737
A51: 01262 | B51: 62 | C51: 45 | D51: 54 | E51: 50 | F51: 53 | G51: 52 | H51: 52 | I51: 63 | J51: 54 | K51: 58 | L51: 69 | M51: 71 | N51: 683 | O51: 682
A52: 01263 | B52: 58 | C52: 41 | D52: 48 | E52: 48 | F52: 44 | G52: 50 | H52: 56 | I52: 56 | J52: 53 | K52: 60 | L52: 70 | M52: 62 | N52: 646 | O52: 645
A53: 01264 | B53: 85 | C53: 57 | D53: 68 | E53: 49 | F53: 58 | G53: 55 | H53: 45 | I53: 63 | J53: 64 | K53: 73 | L53: 77 | M53: 88 | N53: 782 | O53: 781
A54: 01267 | B54: 162 | C54: 109 | D54: 118 | E54: 89 | F54: 87 | G54: 89 | H54: 82 | I54: 114 | J54: 130 | K54: 166 | L54: 158 | M54: 168 | N54: 1472 | O54: 1470
A55: 01268 | B55: 52 | C55: 35 | D55: 45 | E55: 45 | F55: 48 | G55: 49 | H55: 47 | I55: 47 | J55: 55 | K55: 53 | L55: 57 | M55: 55 | N55: 588 | O55: 584
A56: 01269 | B56: 161 | C56: 107 | D56: 117 | E56: 87 | F56: 89 | G56: 95 | H56: 89 | I56: 121 | J56: 135 | K56: 161 | L56: 157 | M56: 167 | N56: 1486 | O56: 1486
A57: 01270 | B57: 57 | C57: 43 | D57: 50 | E57: 48 | F57: 61 | G57: 56 | H57: 50 | I57: 59 | J57: 59 | K57: 62 | L57: 70 | M57: 67 | N57: 682 | O57: 683
A58: 01271 | B58: 151 | C58: 102 | D58: 105 | E58: 77 | F58: 77 | G58: 84 | H58: 84 | I58: 99 | J58: 117 | K58: 144 | L58: 154 | M58: 157 | N58: 1351 | O58: 1350
A59: 01273 | B59: 84 | C59: 56 | D59: 66 | E59: 54 | F59: 51 | G59: 56 | H59: 51 | I59: 60 | J59: 71 | K59: 92 | L59: 97 | M59: 87 | N59: 825 | O59: 823
A60: 01274 | B60: 100 | C60: 78 | D60: 84 | E60: 72 | F60: 65 | G60: 64 | H60: 58 | I60: 79 | J60: 84 | K60: 92 | L60: 99 | M60: 104 | N60: 979 | O60: 978
A61: 01275 | B61: 85 | C61: 61 | D61: 68 | E61: 55 | F61: 64 | G61: 65 | H61: 61 | I61: 74 | J61: 82 | K61: 83 | L61: 85 | M61: 92 | N61: 875 | O61: 874
A62: 01276 | B62: 62 | C62: 43 | D62: 54 | E62: 48 | F62: 56 | G62: 51 | H62: 48 | I62: 53 | J62: 59 | K62: 62 | L62: 63 | M62: 66 | N62: 665 | O62: 666
A63: 01277 | B63: 54 | C63: 37 | D63: 47 | E63: 45 | F63: 49 | G63: 51 | H63: 50 | I63: 52 | J63: 55 | K63: 55 | L63: 58 | M63: 57 | N63: 610 | O63: 610
A64: 01278 | B64: 81 | C64: 63 | D64: 61 | E64: 50 | F64: 56 | G64: 51 | H64: 48 | I64: 61 | J64: 61 | K64: 72 | L64: 74 | M64: 83 | N64: 761 | O64: 760
A65: 01279 | B65: 57 | C65: 40 | D65: 50 | E65: 48 | F65: 49 | G65: 53 | H65: 51 | I65: 56 | J65: 54 | K65: 58 | L65: 59 | M65: 61 | N65: 636 | O65: 636
A66: 01280 | B66: 60 | C66: 45 | D66: 57 | E66: 47 | F66: 57 | G66: 56 | H66: 51 | I66: 59 | J66: 55 | K66: 58 | L66: 58 | M66: 67 | N66: 670 | O66: 669
A67: 01282 | B67: 123 | C67: 78 | D67: 97 | E67: 77 | F67: 78 | G67: 86 | H67: 84 | I67: 109 | J67: 114 | K67: 128 | L67: 124 | M67: 131 | N67: 1229 | O67: 1226
A68: 01283 | B68: 66 | C68: 51 | D68: 56 | E68: 53 | F68: 59 | G68: 59 | H68: 53 | I68: 69 | J68: 63 | K68: 62 | L68: 67 | M68: 74 | N68: =SUM(B68:M68) -> 732 | O68: 731
A69: 01284 | B69: 49 | C69: 34 | D69: 44 | E69: 45 | F69: 46 | G69: 51 | H69: 48 | I69: 51 | J69: 51 | K69: 52 | L69: 57 | M69: 54 | N69: 582 | O69: 581
A70: 01285 | B70: 78 | C70: 58 | D70: 67 | E70: 53 | F70: 65 | G70: 63 | H70: 56 | I70: 68 | J70: 69 | K70: 69 | L70: 74 | M70: 88 | N70: 808 | O70: 807
A71: 01286 | B71: 218 | C71: 148 | D71: 174 | E71: 117 | F71: 117 | G71: 129 | H71: 136 | I71: 181 | J71: 193 | K71: 241 | L71: 241 | M71: 246 | N71: 2141 | O71: 2140
A72: 01287 | B72: 78 | C72: 57 | D72: 69 | E72: 62 | F72: 63 | G72: 64 | H72: 66 | I72: 81 | J72: 74 | K72: 73 | L72: 92 | M72: 83 | N72: 862 | O72: 861
A73: 01288 | B73: 119 | C73: 79 | D73: 86 | E73: 61 | F73: 61 | G73: 68 | H73: 72 | I73: 82 | J73: 92 | K73: 109 | L73: 124 | M73: 119 | N73: 1072 | O73: 1072
A74: 01289 | B74: 57 | C74: 40 | D74: 47 | E74: 44 | F74: 52 | G74: 55 | H74: 56 | I74: 67 | J74: 57 | K74: 61 | L74: 60 | M74: 54 | N74: 650 | O74: 648
A75: 01290 | B75: 130 | C75: 81 | D75: 101 | E75: 63 | F75: 75 | G75: 74 | H75: 87 | I75: 112 | J75: 136 | K75: 146 | L75: 135 | M75: 127 | N75: 1267 | O75: 1266
A76: 01291 | B76: 112 | C76: 85 | D76: 85 | E76: 65 | F76: 70 | G76: 70 | H76: 67 | I76: 83 | J76: 95 | K76: 103 | L76: 105 | M76: 119 | N76: 1059 | O76: 1058
A77: 01292 | B77: 121 | C77: 77 | D77: 95 | E77: 59 | F77: 65 | G77: 68 | H77: 82 | I77: 104 | J77: 131 | K77: 137 | L77: 131 | M77: 120 | N77: 1190 | O77: 1190
A78: 01293 | B78: 95 | C78: 62 | D78: 73 | E78: 64 | F78: 64 | G78: 62 | H78: 53 | I78: 66 | J78: 83 | K78: 92 | L78: 95 | M78: 98 | N78: 907 | O78: 906
A79: 01294 | B79: 105 | C79: 69 | D79: 83 | E79: 56 | F79: 63 | G79: 63 | H79: 74 | I79: 98 | J79: 120 | K79: 120 | L79: 112 | M79: 103 | N79: 1066 | O79: 1065
A80: 01295 | B80: 61 | C80: 47 | D80: 58 | E80: 47 | F80: 57 | G80: 60 | H80: 52 | I80: 65 | J80: 57 | K80: 58 | L80: 59 | M80: 69 | N80: 690 | O80: 690
A81: 01296 | B81: 62 | C81: 44 | D81: 56 | E81: 51 | F81: 57 | G81: 57 | H81: 52 | I81: 62 | J81: 57 | K81: 61 | L81: 62 | M81: 69 | N81: 690 | O81: 689
A82: 01297 | B82: 107 | C82: 83 | D82: 81 | E82: 58 | F82: 63 | G82: 58 | H82: 56 | I82: 69 | J82: 73 | K82: 89 | L82: 92 | M82: 105 | N82: 934 | O82: 933
A83: 01298 | B83: 132 | C83: 93 | D83: 106 | E83: 85 | F83: 84 | G83: 82 | H83: 78 | I83: 97 | J83: 100 | K83: 113 | L83: 124 | M83: 132 | N83: 1226 | O83: 1225
A84: 01299 | B84: 72 | C84: 56 | D84: 63 | E84: 57 | F84: 64 | G84: 58 | H84: 56 | I84: 68 | J84: 67 | K84: 66 | L84: 71 | M84: 81 | N84: 779 | O84: 778
A85: 01300 | B85: 118 | C85: 87 | D85: 89 | E85: 62 | F85: 71 | G85: 60 | H85: 55 | I85: 75 | J85: 88 | K85: 102 | L85: 106 | M85: 120 | N85: 1033 | O85: 1032
A86: 01301 | B86: 370 | C86: 251 | D86: 296 | E86: 161 | F86: 171 | G86: 171 | H86: 199 | I86: 246 | J86: 323 | K86: 355 | L86: 325 | M86: 360 | N86: 3228 | O86: 3226
A87: 01302 | B87: 50 | C87: 41 | D87: 47 | E87: 50 | F87: 52 | G87: 56 | H87: 51 | I87: 57 | J87: 50 | K87: 47 | L87: 54 | M87: 54 | N87: 609 | O87: 608
A88: 01303 | B88: 76 | C88: 50 | D88: 60 | E88: 53 | F88: 50 | G88: 53 | H88: 55 | I88: 52 | J88: 69 | K88: 84 | L88: 95 | M88: 76 | N88: 773 | O88: 772
A89: 01304 | B89: 77 | C89: 53 | D89: 63 | E89: 55 | F89: 49 | G89: 56 | H89: 54 | I89: 57 | J89: 73 | K89: 91 | L89: 106 | M89: 79 | N89: 813 | O89: 813
A90: 01305 | B90: 89 | C90: 67 | D90: 71 | E90: 50 | F90: 51 | G90: 47 | H90: 44 | I90: 58 | J90: 66 | K90: 82 | L90: 87 | M90: 92 | N90: 804 | O90: 802
A91: 01306 | B91: 89 | C91: 57 | D91: 68 | E91: 60 | F91: 63 | G91: 57 | H91: 52 | I91: 64 | J91: 76 | K91: 84 | L91: 84 | M91: 90 | N91: 844 | O91: 843
A92: 01307 | B92: 87 | C92: 57 | D92: 61 | E92: 47 | F92: 61 | G92: 59 | H92: 63 | I92: 73 | J92: 75 | K92: 75 | L92: 67 | M92: 72 | N92: 797 | O92: 797
A93: 01308 | B93: 100 | C93: 74 | D93: 75 | E93: 55 | F93: 60 | G93: 50 | H93: 52 | I93: 67 | J93: 71 | K93: 89 | L93: 91 | M93: 98 | N93: 882 | O93: 879
A94: 01309 | B94: 51 | C94: 37 | D94: 45 | E94: 36 | F94: 45 | G94: 53 | H94: 59 | I94: 73 | J94: 62 | K94: 59 | L94: 63 | M94: 52 | N94: 635 | O94: 634
A95: 0131 | B95: 59 | C95: 43 | D95: 53 | E95: 43 | F95: 54 | G95: 52 | H95: 57 | I95: 64 | J95: 65 | K95: 67 | L95: 64 | M95: 57 | N95: 678 | O95: 677
A96: 01320 | B96: 252 | C96: 179 | D96: 233 | E96: 112 | F96: 122 | G96: 119 | H96: 121 | I96: 151 | J96: 217 | K96: 264 | L96: 266 | M96: 275 | N96: 2311 | O96: 2309
A97: 01322 | B97: 59 | C97: 39 | D97: 49 | E97: 47 | F97: 51 | G97: 49 | H97: 46 | I97: 50 | J97: 57 | K97: 58 | L97: 59 | M97: 61 | N97: 625 | O97: 625
A98: 01323 | B98: 81 | C98: 54 | D98: 62 | E98: 51 | F98: 47 | G98: 55 | H98: 47 | I98: 56 | J98: 70 | K98: 89 | L98: 94 | M98: 83 | N98: 789 | O98: 790
A99: 01324 | B99: 119 | C99: 78 | D99: 101 | E99: 59 | F99: 69 | G99: 71 | H99: 75 | I99: 102 | J99: 125 | K99: 120 | L99: 126 | M99: 121 | N99: 1166 | O99: 1164
A100: 01325 | B100: 62 | C100: 45 | D100: 53 | E100: 51 | F100: 53 | G100: 54 | H100: 52 | I100: 68 | J100: 52 | K100: 55 | L100: 61 | M100: 57 | N100: 663 | O100: 663
A101: 01326 | B101: 119 | C101: 93 | D101: 87 | E101: 57 | F101: 57 | G101: 54 | H101: 53 | I101: 65 | J101: 74 | K101: 97 | L101: 109 | M101: 114 | N101: 979 | O101: 978
A102: 01327 | B102: 58 | C102: 44 | D102: 55 | E102: 47 | F102: 55 | G102: 57 | H102: 53 | I102: 65 | J102: 53 | K102: 57 | L102: 58 | M102: 67 | N102: 669 | O102: 668
A103: 01328 | B103: 62 | C103: 43 | D103: 53 | E103: 51 | F103: 53 | G103: 55 | H103: 59 | I103: 63 | J103: 56 | K103: 60 | L103: 74 | M103: 65 | N103: 694 | O103: 694
A104: 01329 | B104: 86 | C104: 57 | D104: 63 | E104: 49 | F104: 52 | G104: 48 | H104: 42 | I104: 56 | J104: 65 | K104: 80 | L104: 86 | M104: 84 | N104: 768 | O104: 766
A105: 01330 | B105: 102 | C105: 63 | D105: 69 | E105: 56 | F105: 65 | G105: 60 | H105: 72 | I105: 77 | J105: 74 | K105: 86 | L105: 80 | M105: 85 | N105: 889 | O105: 886
A106: 01332 | B106: 61 | C106: 50 | D106: 53 | E106: 50 | F106: 53 | G106: 59 | H106: 52 | I106: 61 | J106: 56 | K106: 58 | L106: 61 | M106: 67 | N106: 681 | O106: 681
A107: 01333 | B107: 71 | C107: 52 | D107: 60 | E107: 49 | F107: 59 | G107: 58 | H107: 63 | I107: 75 | J107: 74 | K107: 73 | L107: 73 | M107: 69 | N107: 776 | O107: 774
A108: 01334 | B108: 72 | C108: 50 | D108: 57 | E108: 48 | F108: 59 | G108: 56 | H108: 60 | I108: 70 | J108: 70 | K108: 70 | L108: 68 | M108: 66 | N108: 746 | O108: 745
A109: 01335 | B109: 89 | C109: 65 | D109: 72 | E109: 63 | F109: 68 | G109: 73 | H109: 64 | I109: 80 | J109: 76 | K109: 79 | L109: 88 | M109: 93 | N109: 910 | O109: 909
A110: 01337 | B110: 92 | C110: 63 | D110: 73 | E110: 50 | F110: 63 | G110: 65 | H110: 64 | I110: 74 | J110: 82 | K110: 86 | L110: 86 | M110: 87 | N110: 885 | O110: 884
A111: 013397 | B111: 101 | C111: 59 | D111: 69 | E111: 58 | F111: 67 | G111: 62 | H111: 70 | I111: 77 | J111: 78 | K111: 88 | L111: 84 | M111: 86 | N111: 899 | O111: 898
A112: 013398 | B112: 101 | C112: 59 | D112: 69 | E112: 58 | F112: 67 | G112: 62 | H112: 70 | I112: 77 | J112: 78 | K112: 88 | L112: 84 | M112: 86 | N112: 899 | O112: 898
A113: 01340 | B113: 75 | C113: 55 | D113: 70 | E113: 60 | F113: 69 | G113: 67 | H113: 76 | I113: 90 | J113: 80 | K113: 85 | L113: 90 | M113: 79 | N113: 896 | O113: 896
A114: 01341 | B114: 174 | C114: 119 | D114: 144 | E114: 101 | F114: 99 | G114: 108 | H114: 121 | I114: 140 | J114: 153 | K114: 187 | L114: 199 | M114: 208 | N114: 1753 | O114: 1751
A115: 01342 | B115: 93 | C115: 61 | D115: 72 | E115: 62 | F115: 62 | G115: 63 | H115: 54 | I115: 66 | J115: 84 | K115: 91 | L115: 96 | M115: 95 | N115: 899 | O115: 898
A116: 01343 | B116: 55 | C116: 40 | D116: 49 | E116: 39 | F116: 48 | G116: 53 | H116: 60 | I116: 75 | J116: 62 | K116: 61 | L116: 66 | M116: 55 | N116: 663 | O116: 662
A117: 01344 | B117: 67 | C117: 46 | D117: 57 | E117: 50 | F117: 58 | G117: 53 | H117: 49 | I117: 55 | J117: 63 | K117: 66 | L117: 67 | M117: 71 | N117: 702 | O117: 699
A118: 01346 | B118: 70 | C118: 47 | D118: 57 | E118: 44 | F118: 50 | G118: 51 | H118: 58 | I118: 73 | J118: 71 | K118: 71 | L118: 79 | M118: 72 | N118: 743 | O118: 742
A119: 01347 | B119: 56 | C119: 42 | D119: 47 | E119: 44 | F119: 50 | G119: 53 | H119: 50 | I119: 63 | J119: 53 | K119: 51 | L119: 53 | M119: 56 | N119: 618 | O119: 617
A120: 01348 | B120: 109 | C120: 74 | D120: 80 | E120: 62 | F120: 59 | G120: 64 | H120: 60 | I120: 87 | J120: 96 | K120: 118 | L120: 120 | M120: 132 | N120: 1061 | O120: 1060
A121: 01349 | B121: 83 | C121: 59 | D121: 71 | E121: 42 | F121: 55 | G121: 56 | H121: 52 | I121: 66 | J121: 69 | K121: 84 | L121: 91 | M121: 84 | N121: 812 | O121: 812
A122: 01350 | B122: 137 | C122: 91 | D122: 99 | E122: 60 | F122: 84 | G122: 79 | H122: 83 | I122: 99 | J122: 116 | K122: 128 | L122: 116 | M122: 128 | N122: 1220 | O122: 1218
A123: 01352 | B123: 71 | C123: 54 | D123: 64 | E123: 57 | F123: 61 | G123: 57 | H123: 55 | I123: 64 | J123: 70 | K123: 74 | L123: 90 | M123: 84 | N123: 801 | O123: 800
A124: 01353 | B124: 44 | C124: 33 | D124: 43 | E124: 42 | F124: 50 | G124: 53 | H124: 47 | I124: 54 | J124: 45 | K124: 47 | L124: 52 | M124: 49 | N124: 559 | O124: 559
A125: 01354 | B125: 45 | C125: 33 | D125: 44 | E125: 43 | F125: 51 | G125: 52 | H125: 49 | I125: 56 | J125: 46 | K125: 45 | L125: 52 | M125: 50 | N125: 566 | O125: 564
A126: 01355 | B126: 143 | C126: 92 | D126: 118 | E126: 72 | F126: 81 | G126: 82 | H126: 92 | I126: 125 | J126: 157 | K126: 156 | L126: 152 | M126: 142 | N126: 1412 | O126: 1413
A127: 01356 | B127: 109 | C127: 72 | D127: 76 | E127: 56 | F127: 73 | G127: 62 | H127: 67 | I127: 78 | J127: 84 | K127: 94 | L127: 84 | M127: 88 | N127: 943 | O127: 942
A128: 01357 | B128: 141 | C128: 89 | D128: 117 | E128: 73 | F128: 80 | G128: 86 | H128: 96 | I128: 127 | J128: 151 | K128: 155 | L128: 155 | M128: 143 | N128: 1413 | O128: 1412
A129: 01358 | B129: 79 | C129: 50 | D129: 59 | E129: 54 | F129: 60 | G129: 54 | H129: 63 | I129: 75 | J129: 71 | K129: 77 | L129: 78 | M129: 72 | N129: 792 | O129: 790
A130: 01359 | B130: 49 | C130: 34 | D130: 43 | E130: 43 | F130: 45 | G130: 50 | H130: 48 | I130: 49 | J130: 50 | K130: 52 | L130: 57 | M130: 52 | N130: 572 | O130: 570
A131: 01360 | B131: 150 | C131: 102 | D131: 126 | E131: 75 | F131: 90 | G131: 85 | H131: 91 | I131: 122 | J131: 155 | K131: 159 | L131: 150 | M131: 147 | N131: 1452 | O131: 1451
A132: 01361 | B132: 78 | C132: 54 | D132: 65 | E132: 54 | F132: 64 | G132: 62 | H132: 64 | I132: 79 | J132: 75 | K132: 75 | L132: 79 | M132: 72 | N132: =SUM(B132:M132) -> 821 | O132: 820
A133: 01362 | B133: 61 | C133: 43 | D133: 52 | E133: 51 | F133: 52 | G133: 55 | H133: 57 | I133: 60 | J133: 56 | K133: 60 | L133: 73 | M133: 64 | N133: 684 | O133: 683
A134: 01363 | B134: 133 | C134: 96 | D134: 91 | E134: 65 | F134: 66 | G134: 58 | H134: 54 | I134: 71 | J134: 78 | K134: 105 | L134: 115 | M134: 130 | N134: 1062 | O134: 1062
A135: 01364 | B135: 191 | C135: 147 | D135: 139 | E135: 91 | F135: 89 | G135: 85 | H135: 78 | I135: 103 | J135: 113 | K135: 144 | L135: 161 | M135: 187 | N135: 1528 | O135: 1528
A136: 01366 | B136: 48 | C136: 35 | D136: 45 | E136: 43 | F136: 51 | G136: 55 | H136: 50 | I136: 55 | J136: 47 | K136: 50 | L136: 57 | M136: 52 | N136: 588 | O136: 587
A137: 01367 | B137: 60 | C137: 44 | D137: 55 | E137: 46 | F137: 55 | G137: 54 | H137: 44 | I137: 55 | J137: 55 | K137: 58 | L137: 59 | M137: 67 | N137: 652 | O137: 650
A138: 01368 | B138: 70 | C138: 45 | D138: 62 | E138: 51 | F138: 62 | G138: 56 | H138: 59 | I138: 78 | J138: 68 | K138: 73 | L138: 77 | M138: 66 | N138: 767 | O138: 765
A139: 01369 | B139: 179 | C139: 114 | D139: 142 | E139: 85 | F139: 94 | G139: 98 | H139: 113 | I139: 142 | J139: 189 | K139: 185 | L139: 174 | M139: 172 | N139: 1687 | O139: 1686
A140: 01371 | B140: 52 | C140: 37 | D140: 48 | E140: 45 | F140: 45 | G140: 49 | H140: 51 | I140: 54 | J140: 50 | K140: 54 | L140: 58 | M140: 57 | N140: 600 | O140: 599
A141: 01372 | B141: 60 | C141: 39 | D141: 50 | E141: 46 | F141: 52 | G141: 49 | H141: 44 | I141: 54 | J141: 56 | K141: 62 | L141: 61 | M141: 63 | N141: 636 | O141: 636
A142: 01373 | B142: 99 | C142: 74 | D142: 82 | E142: 61 | F142: 69 | G142: 64 | H142: 62 | I142: 77 | J142: 80 | K142: 82 | L142: 94 | M142: 104 | N142: 948 | O142: 947
A143: 01375 | B143: 58 | C143: 39 | D143: 48 | E143: 47 | F143: 50 | G143: 49 | H143: 47 | I143: 48 | J143: 58 | K143: 57 | L143: 60 | M143: 61 | N143: 622 | O143: 621
A144: 01376 | B144: 49 | C144: 34 | D144: 45 | E144: 44 | F144: 44 | G144: 51 | H144: 45 | I144: 50 | J144: 48 | K144: 52 | L144: 55 | M144: 52 | N144: 569 | O144: 568
A145: 01377 | B145: 59 | C145: 44 | D145: 56 | E145: 52 | F145: 55 | G145: 55 | H145: 56 | I145: 68 | J145: 57 | K145: 58 | L145: 65 | M145: 66 | N145: 691 | O145: 691
A146: 01379 | B146: 48 | C146: 34 | D146: 41 | E146: 41 | F146: 45 | G146: 50 | H146: 47 | I146: 47 | J146: 48 | K146: 53 | L146: 57 | M146: 52 | N146: 563 | O146: 562
A147: 01380 | B147: 77 | C147: 57 | D147: 66 | E147: 51 | F147: 60 | G147: 56 | H147: 50 | I147: 66 | J147: 69 | K147: 70 | L147: 75 | M147: 86 | N147: 783 | O147: 782
A148: 01381 | B148: 67 | C148: 49 | D148: 57 | E148: 40 | F148: 55 | G148: 59 | H148: 60 | I148: 75 | J148: 69 | K148: 74 | L148: 77 | M148: 69 | N148: 751 | O148: 750
A149: 01382 | B149: 73 | C149: 49 | D149: 56 | E149: 44 | F149: 56 | G149: 56 | H149: 58 | I149: 67 | J149: 70 | K149: 69 | L149: 64 | M149: 67 | N149: 729 | O149: 729
A150: 01383 | B150: 67 | C150: 49 | D150: 57 | E150: 43 | F150: 52 | G150: 53 | H150: 59 | I150: 72 | J150: 77 | K150: 73 | L150: 74 | M150: 68 | N150: 744 | O150: 743
A151: 01384 | B151: 68 | C151: 52 | D151: 58 | E151: 55 | F151: 62 | G151: 58 | H151: 57 | I151: 68 | J151: 65 | K151: 63 | L151: 66 | M151: 76 | N151: 748 | O151: 745
A152: 01386 | B152: 63 | C152: 47 | D152: 54 | E152: 49 | F152: 58 | G152: 56 | H152: 52 | I152: 68 | J152: 61 | K152: 55 | L152: 61 | M152: 72 | N152: 696 | O152: 694
A153: 01387 | B153: 108 | C153: 75 | D153: 82 | E153: 55 | F153: 70 | G153: 65 | H153: 72 | I153: 94 | J153: 104 | K153: 116 | L153: 101 | M153: 105 | N153: 1047 | O153: 1046
A154: 01388 | B154: 65 | C154: 47 | D154: 55 | E154: 51 | F154: 56 | G154: 55 | H154: 57 | I154: 70 | J154: 58 | K154: 58 | L154: 65 | M154: 63 | N154: 700 | O154: 701
A155: 01389 | B155: 178 | C155: 119 | D155: 145 | E155: 82 | F155: 95 | G155: 87 | H155: 95 | I155: 127 | J155: 168 | K155: 180 | L155: 174 | M155: 176 | N155: 1626 | O155: 1627
A156: 01392 | B156: 104 | C156: 81 | D156: 70 | E156: 53 | F156: 59 | G156: 50 | H156: 43 | I156: 58 | J156: 61 | K156: 82 | L156: 80 | M156: 99 | N156: 840 | O156: 839
A157: 01394 | B157: 53 | C157: 37 | D157: 46 | E157: 44 | F157: 44 | G157: 46 | H157: 48 | I157: 47 | J157: 53 | K157: 54 | L157: 61 | M157: 54 | N157: 587 | O157: 587
A158: 01395 | B158: 96 | C158: 77 | D158: 69 | E158: 51 | F158: 55 | G158: 48 | H158: 46 | I158: 59 | J158: 61 | K158: 78 | L158: 77 | M158: 94 | N158: 811 | O158: 811
A159: 01397 | B159: 250 | C159: 174 | D159: 218 | E159: 108 | F159: 114 | G159: 132 | H159: 150 | I159: 173 | J159: 239 | K159: 269 | L159: 248 | M159: 258 | N159: 2333 | O159: 2331
A160: 01398 | B160: 140 | C160: 101 | D160: 103 | E160: 78 | F160: 82 | G160: 74 | H160: 76 | I160: 93 | J160: 103 | K160: 120 | L160: 130 | M160: 142 | N160: 1242 | O160: 1241
A161: 01400 | B161: 53 | C161: 42 | D161: 49 | E161: 51 | F161: 54 | G161: 53 | H161: 46 | I161: 61 | J161: 48 | K161: 47 | L161: 55 | M161: 54 | N161: 613 | O161: 613
A162: 01403 | B162: 97 | C162: 63 | D162: 74 | E162: 62 | F162: 61 | G162: 59 | H162: 48 | I162: 64 | J162: 79 | K162: 91 | L162: 95 | M162: 98 | N162: 891 | O162: 891
A163: 01404 | B163: 118 | C163: 90 | D163: 86 | E163: 64 | F163: 70 | G163: 64 | H163: 63 | I163: 74 | J163: 82 | K163: 97 | L163: 97 | M163: 116 | N163: 1021 | O163: 1021
A164: 01405 | B164: 48 | C164: 36 | D164: 48 | E164: 48 | F164: 50 | G164: 54 | H164: 53 | I164: 62 | J164: 51 | K164: 48 | L164: 54 | M164: 54 | N164: 606 | O164: 606
A165: 01406 | B165: 49 | C165: 36 | D165: 46 | E165: 46 | F165: 52 | G165: 52 | H165: 49 | I165: 58 | J165: 48 | K165: 45 | L165: 56 | M165: 52 | N165: 589 | O165: 588
A166: 01407 | B166: 81 | C166: 55 | D166: 63 | E166: 53 | F166: 49 | G166: 51 | H166: 53 | I166: 72 | J166: 73 | K166: 88 | L166: 96 | M166: 92 | N166: 826 | O166: 825
A167: 01408 | B167: 80 | C167: 53 | D167: 66 | E167: 45 | F167: 56 | G167: 57 | H167: 58 | I167: 74 | J167: 73 | K167: 78 | L167: 88 | M167: 75 | N167: 803 | O167: 802
A168: 01409 | B168: 133 | C168: 89 | D168: 91 | E168: 65 | F168: 67 | G168: 71 | H168: 77 | I168: 88 | J168: 97 | K168: 116 | L168: 130 | M168: 136 | N168: 1160 | O168: 1160
A169: 0141 | B169: 130 | C169: 85 | D169: 105 | E169: 60 | F169: 76 | G169: 68 | H169: 69 | I169: 99 | J169: 131 | K169: 138 | L169: 129 | M169: 124 | N169: 1214 | O169: 1214
A170: 01420 | B170: 92 | C170: 62 | D170: 73 | E170: 56 | F170: 63 | G170: 56 | H170: 55 | I170: 61 | J170: 74 | K170: 83 | L170: 89 | M170: 95 | N170: 859 | O170: 856
A171: 01422 | B171: 127 | C171: 92 | D171: 108 | E171: 88 | F171: 80 | G171: 82 | H171: 78 | I171: 107 | J171: 114 | K171: 124 | L171: 134 | M171: 136 | N171: 1270 | O171: 1270
A172: 01423 | B172: 68 | C172: 53 | D172: 57 | E172: 53 | F172: 53 | G172: 52 | H172: 51 | I172: 65 | J172: 58 | K172: 60 | L172: 64 | M172: 66 | N172: 700 | O172: 699
A173: 01424 | B173: 88 | C173: 57 | D173: 65 | E173: 53 | F173: 50 | G173: 55 | H173: 52 | I173: 60 | J173: 72 | K173: 94 | L173: 100 | M173: 87 | N173: 833 | O173: 833
A174: 01425 | B174: 91 | C174: 64 | D174: 68 | E174: 50 | F174: 58 | G174: 56 | H174: 43 | I174: 58 | J174: 68 | K174: 83 | L174: 86 | M174: 93 | N174: 818 | O174: 818
A175: 01427 | B175: 48 | C175: 38 | D175: 47 | E175: 51 | F175: 52 | G175: 56 | H175: 53 | I175: 59 | J175: 50 | K175: 47 | L175: 54 | M175: 54 | N175: 609 | O175: 608
A176: 01428 | B176: 100 | C176: 65 | D176: 76 | E176: 60 | F176: 65 | G176: 59 | H176: 55 | I176: 64 | J176: 79 | K176: 90 | L176: 94 | M176: 99 | N176: 906 | O176: 905
A177: 01429 | B177: 55 | C177: 41 | D177: 52 | E177: 48 | F177: 52 | G177: 54 | H177: 55 | I177: 67 | J177: 55 | K177: 56 | L177: 71 | M177: 59 | N177: 665 | O177: 664
A178: 014304 | B178: 51 | C178: 39 | D178: 50 | E178: 46 | F178: 51 | G178: 53 | H178: 54 | I178: 65 | J178: 51 | K178: 51 | L178: 56 | M178: 57 | N178: 624 | O178: 623
A179: 014308 | B179: 51 | C179: 39 | D179: 50 | E179: 46 | F179: 51 | G179: 53 | H179: 54 | I179: 65 | J179: 51 | K179: 51 | L179: 56 | M179: 57 | N179: 624 | O179: 623
A180: 01431 | B180: 74 | C180: 48 | D180: 59 | E180: 40 | F180: 52 | G180: 56 | H180: 61 | I180: 78 | J180: 75 | K180: 72 | L180: 83 | M180: 67 | N180: 765 | O180: 767
A181: 01432 | B181: 82 | C181: 60 | D181: 62 | E181: 51 | F181: 60 | G181: 53 | H181: 44 | I181: 60 | J181: 65 | K181: 67 | L181: 70 | M181: 79 | N181: 753 | O181: 753
A182: 01433 | B182: 132 | C182: 92 | D182: 106 | E182: 83 | F182: 79 | G182: 84 | H182: 79 | I182: 100 | J182: 103 | K182: 115 | L182: 123 | M182: 131 | N182: 1227 | O182: 1226
A183: 014342 | B183: 127 | C183: 91 | D183: 102 | E183: 73 | F183: 71 | G183: 68 | H183: 77 | I183: 97 | J183: 97 | K183: 105 | L183: 123 | M183: 114 | N183: 1145 | O183: 1144
A184: 014343 | B184: 127 | C184: 91 | D184: 102 | E184: 73 | F184: 71 | G184: 68 | H184: 77 | I184: 97 | J184: 97 | K184: 105 | L184: 123 | M184: 114 | N184: 1145 | O184: 1144
A185: 014346 | B185: 127 | C185: 91 | D185: 102 | E185: 73 | F185: 71 | G185: 68 | H185: 77 | I185: 97 | J185: 97 | K185: 105 | L185: 123 | M185: 114 | N185: 1145 | O185: 1144
A186: 014348 | B186: 127 | C186: 91 | D186: 102 | E186: 73 | F186: 71 | G186: 68 | H186: 77 | I186: 97 | J186: 97 | K186: 105 | L186: 123 | M186: 114 | N186: 1145 | O186: 1144
A187: 01435 | B187: 88 | C187: 58 | D187: 66 | E187: 54 | F187: 53 | G187: 61 | H187: 51 | I187: 63 | J187: 74 | K187: 93 | L187: 95 | M187: 88 | N187: 844 | O187: 842
A188: 01436 | B188: 194 | C188: 124 | D188: 151 | E188: 87 | F188: 95 | G188: 95 | H188: 106 | I188: 135 | J188: 187 | K188: 189 | L188: 179 | M188: 182 | N188: 1724 | O188: 1723
A189: 01437 | B189: 101 | C189: 72 | D189: 76 | E189: 57 | F189: 54 | G189: 57 | H189: 50 | I189: 75 | J189: 83 | K189: 107 | L189: 109 | M189: 115 | N189: 956 | O189: 956
A190: 01438 | B190: 58 | C190: 43 | D190: 52 | E190: 51 | F190: 50 | G190: 57 | H190: 48 | I190: 55 | J190: 55 | K190: 62 | L190: 60 | M190: 63 | N190: 654 | O190: 654
A191: 01439 | B191: 71 | C191: 50 | D191: 62 | E191: 50 | F191: 57 | G191: 60 | H191: 60 | I191: 70 | J191: 66 | K191: 68 | L191: 70 | M191: 72 | N191: 756 | O191: 756
A192: 01440 | B192: 50 | C192: 36 | D192: 46 | E192: 45 | F192: 47 | G192: 49 | H192: 51 | I192: 54 | J192: 51 | K192: 52 | L192: 57 | M192: 56 | N192: 594 | O192: 593
A193: 01442 | B193: 78 | C193: 55 | D193: 67 | E193: 58 | F193: 63 | G193: 66 | H193: 58 | I193: 72 | J193: 68 | K193: 74 | L193: 76 | M193: 84 | N193: 819 | O193: 819
A194: 01443 | B194: 235 | C194: 156 | D194: 166 | E194: 117 | F194: 119 | G194: 118 | H194: 115 | I194: 154 | J194: 173 | K194: 207 | L194: 211 | M194: 236 | N194: 2007 | O194: 2005
A195: 01444 | B195: 98 | C195: 63 | D195: 73 | E195: 63 | F195: 61 | G195: 63 | H195: 51 | I195: 65 | J195: 83 | K195: 96 | L195: 99 | M195: 99 | N195: 914 | O195: 915
A196: 01445 | B196: 181 | C196: 129 | D196: 173 | E196: 101 | F196: 95 | G196: 111 | H196: 126 | I196: 138 | J196: 214 | K196: 225 | L196: 232 | M196: 222 | N196: =SUM(B196:M196) -> 1947 | O196: 1945
A197: 01446 | B197: 104 | C197: 74 | D197: 81 | E197: 59 | F197: 65 | G197: 69 | H197: 70 | I197: 85 | J197: 94 | K197: 104 | L197: 105 | M197: 107 | N197: 1017 | O197: 1015
A198: 01449 | B198: 51 | C198: 36 | D198: 44 | E198: 44 | F198: 45 | G198: 47 | H198: 49 | I198: 48 | J198: 50 | K198: 55 | L198: 59 | M198: 52 | N198: 580 | O198: 579
A199: 01450 | B199: 102 | C199: 68 | D199: 80 | E199: 55 | F199: 72 | G199: 66 | H199: 78 | I199: 88 | J199: 87 | K199: 98 | L199: 99 | M199: 101 | N199: 994 | O199: 993
A200: 01451 | B200: 73 | C200: 55 | D200: 64 | E200: 52 | F200: 63 | G200: 62 | H200: 55 | I200: 68 | J200: 66 | K200: 66 | L200: 70 | M200: 83 | N200: 777 | O200: 775
A201: 01452 | B201: 70 | C201: 51 | D201: 56 | E201: 48 | F201: 59 | G201: 53 | H201: 52 | I201: 65 | J201: 65 | K201: 62 | L201: 66 | M201: 76 | N201: 723 | O201: 723
... 416 more rows

Sheet Markers
A2: TRUE | B2: Housing/feeding | H2: TRUE | I2: Herringbone 1:1 | K2: existing yes | L2: TRUE | N2: Men
A3: FALSE | B3: Housing/feeding | H3: FALSE | I3: Herringbone 1:2 | L3: Herringbone 1:2 | Q3: Loading | R3: =ROUNDUP('Options (2)'!$B$8/VALUE(LEFT(Markers!R8,2)),0)*VLOOKUP(VALUE(LEFT(Markers!R8,2)),loading,3)/60/60/24 -> 00:00:00
A4: TRUE | B4: Slurry | H4: FALSE | I4: Rapid Exit | R4: =R15*'Options (2)'!$B$8+R2 -> 00:00:00
H5: FALSE | I5: Auto Tandem | Q5: Milking time | R5: =((IF(R6=1,R9,R9*0.6)/60/60/24)+R10+R11+R13+R14)*'Options (2)'!$B$8+R3 -> 00:00:00
H6: FALSE | I6: Internal Rotary | P6: Men | Q6: 1:1 Herringbone | R6: =IF(VALUE(LEFT(R$8,2))>(VLOOKUP($Q6,manpower,2,FALSE)),2,1) -> 1
A7: FALSE | B7: Straw yard | E7: FALSE | H7: FALSE | I7: External Rotary | Q7: 1:2 Herringbone | R7: =IF(VALUE(LEFT(R$8,2))>(VLOOKUP($Q7,manpower,2,FALSE)),2,1) -> 1
A8: FALSE | B8: Kennel | C8: FALSE | D8: Kennel 3 row | H8: FALSE | I8: AMS | R8: 16/16
A9: FALSE | B9: Cubicles 2 Row | G9: Exisiting | H9: New | J9: 1 | K9: 2 | L9: 3 | M9: 4 | N9: Ex Times | O9: New Times | Q9: Cluster attach | R9: =+(12/60/60/24) -> 0.0001388888889
A10: TRUE | B10: Cubicles 3 Row | G10: 3 | H10: 3 | I10: Foremlik | J10: 6.944444444e-05 | K10: 3.472222222e-05 | L10: 0 | N10: =HLOOKUP(G10,uddertime,MATCH(I10,$I$9:$I$15,0),0) -> 0 | O10: =HLOOKUP(H10,uddertime,MATCH(I10,$I$9:$I$15,0),0) -> 0 | Q10: Automation time | R10: =$O$18+$O$21+$O$22 -> 0.0001851851852
A11: FALSE | B11: Slatted cubicles | C11: FALSE | D11: Slats 3 row | G11: 2 | H11: 2 | I11: Teat prep | J11: 0.0001736111111 | K11: 9.259259259e-05 | L11: 9.259259259e-05 | M11: 0 | N11: 9.259259259e-05 | O11: 9.259259259e-05 | Q11: Udder routine | R11: =$O$16 -> 0.000162037037
B12: Slurry system | G12: 3 | H12: 3 | I12: Pre dip | J12: 5.787037037e-05 | K12: 2.314814815e-05 | L12: 0 | N12: 0 | O12: 0 | Q12: Loading
G13: 1 | H13: 2 | I13: Post Dip | J13: 5.787037037e-05 | K13: 2.314814815e-05 | L13: 0 | M13: 0 | N13: 5.787037037e-05 | O13: 2.314814815e-05 | Q13: Unloading | R13: =6/60/60/24 -> 6.944444444e-05
G14: 1 | H14: 4 | I14: Cluster flush | J14: 0.0001157407407 | K14: 2.314814815e-05 | L14: 0 | M14: 0 | N14: 0.0001157407407 | O14: 0 | Q14: misctime | R14: 0.0001157407407
A15: TRUE | B15: Concrete | G15: 4 | H15: 4 | I15: In parlour feeders | J15: 3.472222222e-05 | K15: 0 | L15: 1.157407407e-05 | M15: 0 | N15: 0 | O15: 0
A16: FALSE | B16: Concrete + mat | N16: =SUM(N10:N14,N19) -> 00:00:27 | O16: =SUM(O10:O14,O19) -> 00:00:14 | Q16: Udder Routine time | R16: =SUM(R9:R14) -> 0.0006712962963
A17: FALSE | B17: Concrete + mattress | G17: Exisiting | H17: New | I17: Automation Cost | J17: =SUM(J18:J28) -> 0 | K17: TRUE | L17: FALSE | N17: Ex Times | O17: New Times
A18: FALSE | B18: Concrete + water bed | G18: FALSE | H18: FALSE | I18: Autoshedding | J18: =IF(AND(H18=TRUE,OR(VLOOKUP(TRUE,parlourtype,2,FALSE)="herringbone 1:1",VLOOKUP(TRUE,parlourtype,2,FALSE)="herringbone 1:2")),VLOOKUP(I18,equipcosts,2,FALSE),0) -> 0 | K18: 0 | L18: 3.472222222e-05 | N18: =HLOOKUP(G18,timings,MATCH(I18,$I$17:$I$27,0),0) -> 3.472222222e-05 | O18: =HLOOKUP(H18,timings,MATCH(I18,$I$17:$I$27,0),0) -> 3.472222222e-05
A19: FALSE | B19: Sawdust | G19: FALSE | H19: FALSE | I19: ACRs | J19: =IF(H19=TRUE,VLOOKUP(I19,equipcosts,2,FALSE)*VLOOKUP(VLOOKUP(TRUE,parlourtype,2,FALSE),parlourconfiguration,4,FALSE),0) -> 0 | K19: 0 | L19: 4.62962963e-05 | N19: 4.62962963e-05 | O19: 4.62962963e-05
A20: FALSE | B20: Sand | G20: FALSE | H20: FALSE | I20: In parlour feeders | J20: =IF(H20=TRUE,VLOOKUP(I20,equipcosts,2,FALSE)*VLOOKUP(VLOOKUP(TRUE,parlourtype,2,FALSE),parlourconfiguration,5,FALSE),0) -> 0 | N20: =N15 -> 0 | O20: =O15 -> 0
G21: FALSE | H21: FALSE | I21: Auto ID | J21: =IF(H21=TRUE,(VLOOKUP(I21,equipcosts,2,FALSE)+(VLOOKUP("transponders",equipcosts,2,FALSE)*herd)),"") ->  | K21: 0 | L21: 3.472222222e-05 | N21: 3.472222222e-05 | O21: 3.472222222e-05
G22: FALSE | H22: FALSE | I22: Backing Gate | J22: =IF(H22=TRUE,VLOOKUP(I22,equipcosts,2,FALSE),0) -> 0 | K22: 0 | L22: 0.0001157407407 | N22: 0.0001157407407 | O22: 0.0001157407407
G23: FALSE | H23: FALSE | I23: Autowashing | J23: =IF(H23=TRUE,VLOOKUP(I23,equipcosts,2,FALSE),0) -> 0 | K23: 0 | L23: 0 | N23: 0 | O23: 0
A24: TRUE | B24: Autoscrapers | G24: FALSE | H24: FALSE | I24: Electronic milk meters | J24: =IF(H24=TRUE,VLOOKUP(I24,equipcosts,2,FALSE)*VLOOKUP(VLOOKUP(TRUE,parlourtype,2,FALSE),parlourconfiguration,4,FALSE),0) -> 0 | N24: 0 | O24: 0
A25: FALSE | B25: 200 Lux lighting | G25: FALSE | H25: FALSE | I25: Manual milk meters | J25: =IF(H25=TRUE,VLOOKUP(I25,equipcosts,2,FALSE)*VLOOKUP(VLOOKUP(TRUE,parlourtype,2,FALSE),parlourconfiguration,4,FALSE),0) -> 0 | N25: =HLOOKUP(G25,timings,MATCH(I25,$I$17:$I$27,0),0) -> 0 | O25: =HLOOKUP(H25,timings,MATCH(I25,$I$17:$I$27,0),0) -> 0
A26: FALSE | B26: Remote oestrus detection | G26: FALSE | H26: FALSE | I26: Auto teat spray | J26: =IF(H26=TRUE,VLOOKUP(I26,equipcosts,2,FALSE),0) -> 0 | N26: =HLOOKUP(G26,timings,MATCH(I26,$I$17:$I$27,0),0) -> 0 | O26: =HLOOKUP(H26,timings,MATCH(I26,$I$17:$I$27,0),0) -> 0
A27: FALSE | B27: High speed fan | G27: FALSE | H27: FALSE | I27: Auto cluster flush | J27: =IF(H27=TRUE,VLOOKUP(I27,equipcosts,2,FALSE)*VLOOKUP(VLOOKUP(TRUE,parlourtype,2,FALSE),parlourconfiguration,4,FALSE),0) -> 0 | N27: =HLOOKUP(G27,timings,MATCH(I27,$I$17:$I$27,0),0) -> 0 | O27: =HLOOKUP(H27,timings,MATCH(I27,$I$17:$I$27,0),0) -> 0
A28: TRUE | B28: High volume low speed fan | G28: FALSE | H28: FALSE | I28: Automatic dip & flush | J28: =IF(H28=TRUE,VLOOKUP(I28,equipcosts,2,FALSE)*VLOOKUP(VLOOKUP(TRUE,parlourtype,2,FALSE),parlourconfiguration,4,FALSE),0) -> 0 | K28: 0 | L28: 0 | N28: =HLOOKUP(G28,timings,MATCH(I28,$I$17:$I$28,0),0) -> 0 | O28: =HLOOKUP(H28,timings,MATCH(I28,$I$17:$I$28,0),0) -> 0
A29: TRUE | B29: Climate control - manual | N29: =SUM(N18,N20:N22,N24) -> 00:00:16 | O29: =SUM(O18,O20:O22,O24) -> 00:00:16
A30: FALSE | B30: Climate control - auto | N30: Loading times for herringbone & rapid exit
A31: FALSE | B31: Flush washing | N31: 0 | O31: 0 | P31: 0 | S31: 1
H32: TRUE | I32: All yr Calving | N32: 1 | O32: 10 | P32: =SUM(load) -> 10 | S32: 2
N33: 2 | O33: 9 | P33: =SUM(load:O33) -> 19 | S33: 3
A34: 2 | B34: Bedding type | N34: 3 | O34: 8 | P34: =SUM(load:O34) -> 27 | S34: 4
A35: FALSE | B35: Manual Operation | N35: 4 | O35: 7 | P35: =SUM(load:O35) -> 34
A36: TRUE | B36: Chopper | H36: FALSE | I36: Dairy building | N36: 5 | O36: 6 | P36: =SUM(load:O36) -> 40
A37: FALSE | B37: Spreader | H37: FALSE | I37: Bulk tank | N37: 6 | O37: 5 | P37: =SUM(load:O37) -> 45
A38: FALSE | B38: Dispenser | H38: FALSE | I38: Collecting yard | N38: 7 | O38: 4 | P38: =SUM(load:O38) -> 49 | R38: Herring List | S38: Herring List1:2
H39: FALSE | I39: Handling/AI stalls | N39: 8 | O39: 3 | P39: =SUM(load:O39) -> 52 | R39: 8 | S39: 8
H40: FALSE | I40: Parlour building | N40: 9 | O40: 2 | P40: =SUM(load:O40) -> 54 | R40: 10 | S40: 9
N41: 10 | O41: 1 | P41: =SUM(load:O41) -> 55 | R41: 12 | S41: 10
H42: FALSE | I42: Parlour equipment | N42: 11 | O42: 1 | P42: =SUM(load:O42) -> 56 | R42: 14 | S42: 11
A43: slurry | B43: 1 | H43: FALSE | I43: parlour automation | N43: 12 | O43: 1 | P43: =SUM(load:O43) -> 57 | R43: 16 | S43: 12
N44: 13 | O44: 1 | P44: =SUM(load:O44) -> 58 | R44: 18 | S44: 13
N45: 14 | O45: 1 | P45: =SUM(load:O45) -> 59 | R45: 20 | S45: 14
G46: Existing | H46: operating costs | I46: New | J46: Ian's calc | N46: 15 | O46: 1 | P46: =SUM(load:O46) -> 60 | R46: 22 | S46: 15
G47: ='Operating costs (3)'!B60*annuallitresex/100 -> 0 | H47: maintenance | I47: ='Operating costs (3)'!B60*annuallitres/100 -> 0 | J47: 14720 | N47: 16 | O47: 1 | P47: =SUM(load:O47) -> 61 | R47: 24 | S47: 16
G48: =(CIMex*365*2)*IF(Markers!$G$12=2,'Operating costs (3)'!$B$50,IF(Markers!$G$12=1,'Operating costs (3)'!$B$49,0))/100 -> 0 | H48: predip | I48: =(CIM*365*2)*IF(Markers!$H$12=2,'Operating costs (3)'!B50,IF(Markers!$H$12=1,'Operating costs (3)'!B49,0))/100 -> 0 | J48: 3392 | N48: 17 | O48: 1 | P48: =SUM(load:O48) -> 62 | R48: 26 | S48: 17
G49: =(CIMex*365*2)*IF(Markers!$G$13=3,'Operating costs (3)'!$B$53,IF(Markers!$G$13=2,'Operating costs (3)'!$B$52,IF(Markers!$G$13=1,'Operating costs (3)'!$B$51,0)))/100 -> 0 | H49: postdip | I49: =(CIM*365*2)*IF(AND(Markers!$H$13=3,Markers!$H$14=3),'Operating costs (3)'!$B$55,IF(Markers!$H$13=3,'Operating costs (3)'!$B$53,IF(Markers!$H$13=2,'Operating costs (3)'!$B$52,IF(Markers!$H$13=1,'Operating costs (3)'!$B$51,0))))/100 -> 0 | J49: 6817 | N49: 18 | O49: 1 | P49: =SUM(load:O49) -> 63 | R49: 28 | S49: 18
H50: cluster flush | I50: =(CIM*365*2)*IF(Markers!$H$14=3,'Operating costs (3)'!$B$54,IF(Markers!$H$14=1,'Operating costs (3)'!$B$48,IF(Markers!$H$14=2,'Operating costs (3)'!B48*0.3,0))/100) -> 0 | N50: 19 | O50: 1 | P50: =SUM(load:O50) -> 64 | R50: 30 | S50: 19
G51: =(IF(Markers!$G$23=TRUE,60*'Options (2)'!E27,45*'Options (2)'!E27)+10*'Options (2)'!D27)*2*365*'Dairy Wizard'!$B$10/10^3 -> 730 | H51: water | I51: =(IF(Markers!$H$23=TRUE,60*VLOOKUP(VLOOKUP(TRUE,parlourtype,2,FALSE),parlourdetails,5,FALSE),45*VLOOKUP(VLOOKUP(TRUE,parlourtype,2,FALSE),parlourdetails,5,FALSE))+10*VLOOKUP(VLOOKUP(TRUE,parlourtype,2,FALSE),parlourdetails,4,FALSE))*2*365*'Dairy Wizard'!$B$10/10^3 -> 803 | J51: 4617 | K51: 25 litres/cow/day | N51: 20 | O51: 1 | P51: =SUM(load:O51) -> 65 | R51: 32 | S51: 20
G52: =annuallitres*'Operating costs (3)'!$B$47*ElecCost/100 -> 0 | H52: electric | I52: =annuallitres*'Operating costs (3)'!$B$47*ElecCost/100 -> 0 | J52: 17480 | K52: 460*8000*0.05*9.5/100 | N52: 21 | O52: 2 | P52: =SUM(load:O52) -> 67 | R52: 34 | S52: 21
G53: ='Operating costs (3)'!$B$58*((CIMex*2*365)/'Operating costs (3)'!$B$59) -> 0 | H53: liners | I53: ='Operating costs (3)'!$B$58*((CIM*2*365)/'Operating costs (3)'!$B$59) -> 0 | J53: 2686 | N53: 22 | O53: 3 | P53: =SUM(load:O53) -> 70 | R53: 36 | S53: 22
G54: =(CIMex*365*2)*IF(OR(Markers!$G$11=2,Markers!$G$11=1),'Operating costs (3)'!$B$56,IF(Markers!$H$11=3,'Operating costs (3)'!$B$57,0))/100 -> 0 | H54: Wipes | I54: =(CIM*365*2)*IF(OR(Markers!$H$11=2,Markers!$H$11=1),'Operating costs (3)'!$B$56,IF(Markers!$H$11=3,'Operating costs (3)'!$B$57,0))/100 -> 0 | J54: 6145 | N54: 23 | O54: 4 | P54: =SUM(load:O54) -> 74 | R54: 38 | S54: 23
G55: ='Operating costs (3)'!$B$48*annuallitres/100 -> 0 | H55: cleaning | I55: ='Operating costs (3)'!B48*annuallitres/100 -> 0 | J55: 11040 | K55: 460*8000*0.3/100 | N55: 24 | O55: 5 | P55: =SUM(load:O55) -> 79 | R55: 40 | S55: 24
G56: =SUM(G47:G55) -> 730 | I56: =SUM(I47:I55) -> 803 | J56: =SUM(J47:J55) -> 66897 | N56: 25 | O56: 6 | P56: =SUM(load:O56) -> 85 | R56: 42 | S56: 25
N57: 26 | O57: 7 | P57: =SUM(load:O57) -> 92 | R57: 44 | S57: 26
N58: 27 | O58: 8 | P58: =SUM(load:O58) -> 100 | R58: 46 | S58: 27
N59: 28 | O59: 8 | P59: =SUM(load:O59) -> 108 | R59: 48 | S59: 28
N60: 29 | O60: 8 | P60: =SUM(load:O60) -> 116 | R60: 50 | S60: 29
N61: 30 | O61: 8 | P61: =SUM(load:O61) -> 124 | R61: 52 | S61: 30
N62: 31 | O62: 8 | P62: =SUM(load:O62) -> 132 | R62: 54 | S62: 31
N63: 32 | O63: 8 | P63: =SUM(load:O63) -> 140 | R63: 56 | S63: 32
N64: 33 | O64: 8 | P64: =SUM(load:O64) -> 148 | R64: 58 | S64: 33
N65: 34 | O65: 8 | P65: =SUM(load:O65) -> 156 | R65: 60 | S65: 34
N66: 35 | O66: 8 | P66: =SUM(load:O66) -> 164 | S66: 35
N67: 36 | O67: 8 | P67: =SUM(load:O67) -> 172 | S67: 36
N68: 37 | O68: 8 | P68: =SUM(load:O68) -> 180 | S68: 37
N69: 38 | O69: 8 | P69: =SUM(load:O69) -> 188 | S69: 38
N70: 39 | O70: 8 | P70: =SUM(load:O70) -> 196 | S70: 39
N71: 40 | O71: 8 | P71: =SUM(load:O71) -> 204 | S71: 40
N72: 41 | O72: 8 | P72: =SUM(load:O72) -> 212 | S72: 41
N73: 42 | O73: 8 | P73: =SUM(load:O73) -> 220 | S73: 42
N74: 43 | O74: 8 | P74: =SUM(load:O74) -> 228 | S74: 43
N75: 44 | O75: 8 | P75: =SUM(load:O75) -> 236 | S75: 44
N76: 45 | O76: 8 | P76: =SUM(load:O76) -> 244 | S76: 45
N77: 46 | O77: 8 | P77: =SUM(load:O77) -> 252 | S77: 46
N78: 47 | O78: 8 | P78: =SUM(load:O78) -> 260 | S78: 47
N79: 48 | O79: 8 | P79: =SUM(load:O79) -> 268 | S79: 48
N80: 49 | O80: 8 | P80: =SUM(load:O80) -> 276 | S80: 49
N81: 50 | O81: 8 | P81: =SUM(load:O81) -> 284 | S81: 50
N82: 51 | O82: 8 | P82: =SUM(load:O82) -> 292 | S82: 51
N83: 52 | O83: 8 | P83: =SUM(load:O83) -> 300 | S83: 52
N84: 53 | O84: 8 | P84: =SUM(load:O84) -> 308 | S84: 53
N85: 54 | O85: 8 | P85: =SUM(load:O85) -> 316 | S85: 54
N86: 55 | O86: 8 | P86: =SUM(load:O86) -> 324 | S86: 55
N87: 56 | O87: 8 | P87: =SUM(load:O87) -> 332 | S87: 56
N88: 57 | O88: 8 | P88: =SUM(load:O88) -> 340 | S88: 57
N89: 58 | O89: 8 | P89: =SUM(load:O89) -> 348 | S89: 58
N90: 59 | O90: 8 | P90: =SUM(load:O90) -> 356 | S90: 59
N91: 60 | O91: 8 | P91: =SUM(load:O91) -> 364 | S91: 60
N92: 61 | O92: 8 | P92: =SUM(load:O92) -> 372
N93: 62 | O93: 8 | P93: =SUM(load:O93) -> 380
N94: 63 | O94: 8 | P94: =SUM(load:O94) -> 388
N95: 64 | O95: 8 | P95: =SUM(load:O95) -> 396
N96: 65 | O96: 8 | P96: =SUM(load:O96) -> 404
N97: 66 | O97: 8 | P97: =SUM(load:O97) -> 412
N98: 67 | O98: 8 | P98: =SUM(load:O98) -> 420
N99: 68 | O99: 8 | P99: =SUM(load:O99) -> 428
N100: 69 | O100: 8 | P100: =SUM(load:O100) -> 436
N101: 70 | O101: 8 | P101: =SUM(load:O101) -> 444
N102: 71 | O102: 8 | P102: =SUM(load:O102) -> 452
N103: 72 | O103: 8 | P103: =SUM(load:O103) -> 460
N104: 73 | O104: 8 | P104: =SUM(load:O104) -> 468
N105: 74 | O105: 8 | P105: =SUM(load:O105) -> 476
N106: 75 | O106: 8 | P106: =SUM(load:O106) -> 484
N107: 76 | O107: 8 | P107: =SUM(load:O107) -> 492
N108: 77 | O108: 8 | P108: =SUM(load:O108) -> 500
N109: 78 | O109: 8 | P109: =SUM(load:O109) -> 508
N110: 79 | O110: 8 | P110: =SUM(load:O110) -> 516
N111: 80 | O111: 8 | P111: =SUM(load:O111) -> 524

Sheet Effect on profit (hidden)
A1: Partial Budgets
A4: Cows | B4: ='Data entry (2)'!B4 -> 100
A5: Option | B5: Net capital invested £ total | C5: Increased costs £/annum | D5: Reduced costs £/annum | E5: Effect on profit £/annum | F5: % return on capital
A6: Cubicles v existing straw yard | B6: ='Cubicle v straw'!$D$23 -> 64400 | C6: ='Cubicle v straw'!G25 -> 21206.66667 | D6: ='Cubicle v straw'!N25 -> 18260.33333 | E6: ='Cubicle v straw'!G27 -> -2946.333333 | F6: =IF('Cubicle v straw'!G28<0,0,'Cubicle v straw'!G28) -> 0.004249482402
A7: New cubicle v new straw yard | B7: ='New cubicle'!D23-'New cubicle'!K23 -> 450 | C7: ='New cubicle'!G25 -> 27936.66667 | D7: ='New cubicle'!N25 -> 31385.33333 | E7: ='New cubicle'!G27 -> 3448.666667 | F7: =IF('New cubicle'!G28<0,0,'New cubicle'!G28) -> 0.07618577575
A8: Mat + straw v concrete + straw | B8: =Mat!D21-Mat!K21 -> 3000 | C8: =Mat!G23 -> 2850 | D8: =Mat!N23 -> 4000 | E8: =Mat!G25 -> 1150 | F8: =IF(Mat!G26<0,0,Mat!G26) -> 0.4333333333
A9: Mattress + straw v concrete + straw | B9: =Mattress!D21-Mattress!K21 -> 6000 | C9: =Mattress!G23 -> 3300 | D9: =Mattress!N23 -> 4000 | E9: =Mattress!G25 -> 700 | F9: =IF(Mattress!G26<0,0,Mattress!G26) -> 0.1666666667
A10: Sand v concrete + straw | B10: =Sand!D21-Sand!K21 -> 1000 | C10: =Sand!G23 -> 4850 | D10: =Sand!N23 -> 4550 | E10: =Sand!G25 -> -300 | F10: =IF(Sand!G26<0,0,Sand!G26) -> 0
A11: Autoscrapers v manual scraping | B11: =Scrapers!D21 -> 6600 | C11: =Scrapers!G23 -> 1220 | D11: =Scrapers!N23 -> 5000 | E11: =Scrapers!G25 -> 3780 | F11: =IF(Scrapers!G26<0,0,Scrapers!G26) -> 0.6227272727
A12: Flush washing v manual scraping | B12: =Flushing!D21-Flushing!K21 -> 0 | C12: =Flushing!G23 -> 0 | D12: =Flushing!N23 -> 5000 | E12: =Flushing!G25 -> 5000 | F12: =IF(Flushing!G26<0,0,Flushing!G26) -> 
A13: Extra light | B13: =Light!D23 -> 4500 | C13: =Light!G25 -> 8090 | D13: =Light!N25 -> 7414.4 | E13: =Light!G27 -> -675.6 | F13: =IF(Light!G28<0,0,Light!G28) -> 0
A15: NOTES
A16: 1. The results given will reflect the information you have entered at the data entry screen.
A17: 2. The summary shows that there is a wide range of the change in profit & the return on capital invested.
A18: 3. For mats & mattresses assumes depreciation over 5 years.
A19: 4. The benefit of mats, mattresses & sand excludes the potential benefit of reduced culling, lameness & mastitis.
A20: 5. For extra light the reduced costs include the benefit from higher milk yield
A21: 6. Cubicle investment based on 2 row layout

Sheet Data entry (2) (hidden)
A1: MDC dairy cow housing model
A2: Data entry
A4: Cow number | B4: ='Data entry'!B6 -> 100 | C4: cows
A5: Annual yield/cow | B5: ='Data entry'!B7 -> 7000 | C5: litres
A6: Yield/cow/day | B6: ='Data entry'!B21 -> 25 | C6: litres
A7: Butterfat price | B7: ='Data entry'!B22 -> 1.5 | C7: p/1%
A8: Milk price | B8: ='Data entry'!B23 -> 18.5 | C8: p/litre
A9: Quota | B9: ='Data entry'!B25 -> 0.1 | C9: p/litre
A10: Milking diet cost | B10: ='Data entry'!B24 -> 200 | C10: p/cow/day
A11: Housing period | B11: ='Data entry'!B8 -> 200 | C11: days
A12: Depreciation buildings | B12: ='Data entry'!B10 -> 5 | C12: %
A13: Depreciation machinery | B13: ='Data entry'!B11 -> 10 | C13: %
A14: Interest | B14: ='Data entry'!B12 -> 5 | C14: %
A15: Water | B15: ='Data entry'!B14 -> 1 | C15: p/cubic metre
A16: Electricity | B16: ='Data entry'!B13 -> 10 | C16: p/kW hour
A17: Electricity off peak | B17: 2.6 | C17: p/kW hour
A18: Labour | B18: ='Data entry'!B15 -> 10 | C18: £/hour
A19: Tractor + man | B19: ='Data entry'!B16 -> 25 | C19: £/hour
A20: Straw | B20: ='Data entry'!B17 -> 40 | C20: £/tonne
A21: Sand | B21: ='Data entry'!B19 -> 15 | C21: £/tonne
A22: Sawdust | B22: ='Data entry'!B20 -> 50 | C22: £/tonne

Sheet Operating costs (2)
A1: MDC dairy cow housing model
A2: OPERATING COSTS
A4: BEDDING REQUIREMENTS
A6: Straw unchopped yard | B6: ='Operating costs'!B6 -> 15 | C6: kg/cow/day
A7: Straw unchopped cubicle | B7: ='Operating costs'!B8 -> 7 | C7: kg/cow/day
A8: Straw chopped cubicle | B8: ='Operating costs'!B9 -> 5 | C8: kg/cow/day
A9: Straw chopped cubicle/mat | B9: ='Operating costs'!B10 -> 3 | C9: kg/cow/day
A10: Sawdust cubicle | B10: ='Operating costs'!B11 -> 1 | C10: kg/cow/day
A11: Sand cubicle | B11: ='Operating costs'!B12 -> 14 | C11: kg/cow/day
A13: LABOUR REQUIREMENTS
A15: STRAW YARD bedding | B15: Mins./cow/day | C15: Labour units
A16: Manual bedding | B16: ='Operating costs'!B17 -> 0.9 | C16: 1
A17: Tractor mounted | B17: ='Operating costs'!B18 -> 0.45 | C17: 1
A18: Overhead dispenser | B18: ='Operating costs'!B19 -> 0.3 | C18: 1
A20: STRAW YARD cleaning | B20: Mins./cow/day | C20: Labour units | D20: Note: 2 men; 1 tractor/1loader & 2 spreaders
A21: Yard cleaning | B21: ='Operating costs'!B22 -> 0.28 | C21: 2 | D21: Every 4 weeks, 48t straw & 108t slurry (60% of 60l/day) with 2 men
A23: CUBICLE bedding | B23: Mins./cow/day | C23: Labour units
A24: Straw manual | B24: ='Operating costs'!B25 -> 0.6 | C24: 1
A25: Straw tractor chopped | B25: ='Operating costs'!B26 -> 0.5 | C25: 1
A26: Sawdust manual | B26: ='Operating costs'!B27 -> 0.6 | C26: 1
A27: Sawdust dispenser | B27: ='Operating costs'!B28 -> 0.3 | C27: 1
A28: Sand manual | B28: ='Operating costs'!B29 -> 0.4 | C28: 1 | D28: 3 times/week
A29: Sand dispenser | B29: ='Operating costs'!B30 -> 0.13 | C29: 1 | D29: 3 times/week
A31: CUBICLE scraping | B31: Mins./cow/day | C31: Labour units
A32: Scraping | B32: ='Operating costs'!B33 -> 0.6 | C32: 1 | D32: 2 times/day. Storage adjacent to cubicles
A34: Scraper system
A35: Maintenance £/cow/annum | B35: ='Operating costs'!B36 -> 2
A36: Electricity kW/cow/day | B36: ='Operating costs'!B37 -> 0.18
A38: Flush system
A39: Maintenance £/cow/annum | B39: ='Operating costs'!B40 -> 0
A40: Electricity kW/cow/day | B40: ='Operating costs'!B42 -> 0
A41: Water use | B41: ='Operating costs'!B41 -> 0 | C41: cubic metres/cow/day (9cm/passage*20% daily change)
A43: HS Ventilation system
A44: Maintenance % of capital | B44: ='Operating costs'!B45 -> 2
A45: Electricity kW/cow/day | B45: ='Operating costs'!B46 -> 1.6
A46: HVLS Ventilation system
A47: Maintenance % of capital | B47: ='Operating costs'!B48 -> 2 | C47: days
A48: Electricity kW/cow/day | B48: ='Operating costs'!B49 -> 0.14 | C48: %
A50: THI | C50: Relative humidity %
A51: Temp | B51: 0 | C51: 20 | D51: 40 | E51: 60 | F51: 80 | G51: 100
A52: 22 | G52: 72
A53: 24 | E53: 72 | F53: 73 | G53: 75
A54: 26 | D54: 72 | E54: 74 | F54: 77 | G54: 79
A55: 28 | C55: 72 | D55: 74 | E55: 78 | F55: 82 | G55: 84
A56: 30 | C56: 74 | D56: 77 | E56: 80 | F56: 83 | G56: 86
A57: 32 | B57: 72 | C57: 76 | D57: 79 | E57: 83 | F57: 86 | G57: 90
A58: 34 | B58: 74 | C58: 78 | D58: 82 | E58: 86 | F58: 90 | G58: 94
A59: 36 | B59: 76 | C59: 80 | D59: 85 | E59: 90 | F59: 94 | G59: 98
A60: 38 | B60: 78 | C60: 83 | D60: 87 | E60: 92 | F60: 97 | G60: 99
A61: Milk yield loss = 3%/1 THI (>73)
A63: Supplemental light
A64: Yield increase | B64: ='Operating costs'!B66 -> 8 | C64: %
A65: Feed intake increase | B65: ='Operating costs'!B67 -> 6 | C65: %
A66: Decrease in BF% | B66: ='Operating costs'!B68 -> 0.16 | C66: %
A67: Electricity use Kw/cow/day | B67: ='Operating costs'!B69 -> 2 | D67: Milk yield loss = 3%/1 THI (>73)
A69: Culling rate | B69: % | D69: Cull cost | E69: £/cow
A70: Straw | B70: ='Operating costs'!B77 -> 28 | D70: Heifer | E70: ='Operating costs'!E77 -> 1750
A71: Concrete | B71: ='Operating costs'!B78 -> 30 | E71: ='Operating costs'!E78 -> 0
A72: Mattress | B72: ='Operating costs'!B79 -> 28 | D72: Cull | E72: ='Operating costs'!E79 -> 400
A73: Mat | B73: ='Operating costs'!B80 -> 28 | D73: Net | E73: ='Operating costs'!E80 -> 1350
A74: Sand | B74: ='Operating costs'!B81 -> 26
A76: Lameness rate | B76: % | D76: Lameness cost | E76: £/cow
A77: Straw | B77: ='Operating costs'!B84 -> 25 | D77: Treatment cost | E77: ='Operating costs'!E84 -> 246 | F77: Esselmont & Kossabati, 1997
A78: Concrete | B78: ='Operating costs'!B85 -> 28
A79: Mattress | B79: ='Operating costs'!B86 -> 24
A80: Mat | B80: ='Operating costs'!B87 -> 24
A81: Sand | B81: ='Operating costs'!B88 -> 11
A83: Mastitis rate | B83: qtr/100 cows/yr | D83: Mastitis cost | E83: £/cow/qtr
A84: Straw | B84: ='Operating costs'!B91 -> 35 | D84: Cost | E84: ='Operating costs'!E91 -> 183 | F84: Esselmont & Kossabati, 1997
A85: Concrete | B85: ='Operating costs'!B92 -> 30
A86: Mattress | B86: ='Operating costs'!B93 -> 25
A87: Mat | B87: ='Operating costs'!B94 -> 25
A88: Sand | B88: ='Operating costs'!B95 -> 20

Sheet Capital costs (2) (hidden)
A1: MDC dairy cow housing model
A3: CAPITAL COSTS
A5: Housing only | B5: Cost £/sq.metre | C5: Sq.metre/cow | D5: £/cow
A6: Straw yard | B6: ='Capital costs'!B6 -> 125 | C6: ='Capital costs'!C6 -> 10.5 | D6: =B6*C6 -> 1312.5
A7: Kennel | B7: ='Capital costs'!B7 -> 95 | C7: ='Capital costs'!C7 -> 4.6 | D7: =B7*C7 -> 437 | E7: Check - quote is £750/cow excluding concrete & electrics
A8: Cubicle excl. bed | B8: ='Capital costs'!B8 -> 175 | C8: ='Capital costs'!C8 -> 4.6 | D8: 733 | E8: £50 excluded for concrete bed - see below
A9: Cubicle with slats | B9: ='Capital costs'!B9 -> 355 | C9: ='Capital costs'!C9 -> 4.6 | D9: 1292 | E9: £50 added for division
A11: Housing & feeding | B11: Cost £/sq.metre | C11: Sq.metre/cow | D11: £/cow
A12: Straw yard | B12: ='Capital costs'!B15 -> 104 | C12: ='Capital costs'!C15 -> 12.2 | D12: =B12*C12 -> 1268.8
A13: Kennel | B13: ='Capital costs'!B16 -> 95 | C13: ='Capital costs'!C16 -> 8.9 | D13: =B13*C13 -> 845.5
A14: Cubicle | B14: ='Capital costs'!B17 -> 126 | C14: ='Capital costs'!C17 -> 8.9 | D14: =B14*C14 -> 1121.4
A15: Cubicle with slats | B15: ='Capital costs'!B18 -> 355 | C15: ='Capital costs'!C18 -> 8.9 | D15: =B15*C15 -> 3159.5
A17: Slurry store | D17: £/cow | E17: Based on 10 cubic metres/cow for 180 days
A18: Storage | B18: ='Capital costs'!B24 -> 32 | C18: ='Capital costs'!C24 -> 15 | D18: =B18*C18 -> 480 | E18: Based on 150 cow cost >1500 cubic metres
A19: Reception pit | D19: ='Capital costs'!D25 -> 22 | E19: Based on £3000 cost for 150 cows
A20: Pump | D20: ='Capital costs'!D26 -> 27 | E20: Based on £3000 cost for 150 cows
A21: TOTAL | D21: =SUM(D18:D20) -> 529
A23: Scraper system | D23: £/cow
A24: Total installation | D24: ='Capital costs'!D30 -> 66 | E24: Based on quote for 200 cow unit, 4 passage of 40 metre length
A26: Cubicle beds | D26: £/cow
A27: Cubicle division | D27: ='Capital costs'!D33 -> 60 | E27: Super comfort, high neck rail
A28: Concrete | D28: ='Capital costs'!D34 -> 55 | E28: Division included in building cost for all options
A29: Mat + concrete | D29: ='Capital costs'!D35 -> 85 | E29: Mat £20 + £50 concrete
A30: Mattress + concrete | D30: ='Capital costs'!D36 -> 115 | E30: Mattress £45 + £50 concrete
A31: Sand & concrete | D31: ='Capital costs'!D37 -> 65 | E31: Initial filling of sand £12/cow, but offset by saving in concrete for bed
A32: Water beds | D32: ='Capital costs'!D38 -> 165 | E32: Bed £100 + £50 concrete
A34: Ventilation | D34: £/cow
A35: High Speed Cooling fans | D35: ='Capital costs'!D41 -> 150 | E35: 36 fans for 132 cows @ £200/fan
A36: High Volume Low Speed fan | D36: ='Capital costs'!D42 -> 250 | E36: 6 fans for 132 cows @ £2700/fan
A37: Side wall curtain - auto | D37: ='Capital costs'!D43 -> 55 | E37: Based on 200 cows, 60m long building both sides. Includes climate control
A38: Side wall curtain - manual | D38: ='Capital costs'!D44 -> 44 | E38: Based on 200 cows, 60m long building both sides
A39: Insulated roof sheet | D39: ='Capital costs'!D45 -> 0 | E39: per sq.metre
A41: Lighting | D41: £/cow
A42: Total installation | D42: ='Capital costs'!D48 -> 45 | E42: From Farm Energy Centre 2001.
A44: Flush washing | D44: £/cow
A45: Slurry separator | D45: ='Capital costs'!D51 -> 0 | E45: Based on quote of £30k for up to 650 cows with sand
A46: Flush system | D46: ='Capital costs'!D52 -> 0 | E46: Based on quote of £30k for 200 cows with 4 passages
A47: Storage tanks | D47: ='Capital costs'!D53 -> 0
A48: TOTAL | D48: =SUM(D45:D47) -> 0
A50: Machinery | B50: £
A51: Straw spreader | B51: ='Capital costs'!B63 -> 6600
A52: Straw overhead dispenser | B52: ='Capital costs'!B64 -> 20000
A53: Straw chopper/tractor | B53: ='Capital costs'!B60 -> 2750
A54: Sand dispenser | B54: ='Capital costs'!B61 -> 3850
A55: Sawdust dispenser | B55: ='Capital costs'!B62 -> 2200

Sheet Cubicle v straw (hidden)
A1: MDC dairy cow housing model
A7: LOSSES | H7: GAINS
A8: Reduced Income | G8: £/annum | H8: Increased Income | N8: £/annum
A12: Increased Costs | B12: Cows | C12: Units | D12: Days | E12: Total | F12: £/unit | H12: Cost Savings | I12: Cows | J12: Units | K12: Days | L12: Total | M12: £/unit
A13: Straw | B13: ='Data entry (2)'!$B$4 -> 100 | C13: ='Operating costs (2)'!B7 -> 7 | D13: ='Data entry (2)'!B11 -> 200 | E13: =(B13*C13*D13)/1000 -> 140 | F13: ='Data entry (2)'!B20 -> 40 | G13: =E13*F13 -> 5600 | H13: Straw | I13: ='Data entry (2)'!$B$4 -> 100 | J13: ='Operating costs (2)'!B6 -> 15 | K13: ='Data entry (2)'!B11 -> 200 | L13: =(I13*J13*K13)/1000 -> 300 | M13: ='Data entry (2)'!B20 -> 40 | N13: =L13*M13 -> 12000
A14: Bedding | B14: ='Data entry (2)'!$B$4 -> 100 | C14: ='Operating costs (2)'!B25 -> 0.5 | D14: ='Data entry (2)'!B11 -> 200 | E14: =(B14*C14*D14)/60 -> 166.6666667 | F14: ='Data entry (2)'!B19 -> 25 | G14: =E14*F14 -> 4166.666667 | H14: Bedding | I14: ='Data entry (2)'!$B$4 -> 100 | J14: ='Operating costs (2)'!B17 -> 0.45 | K14: ='Data entry (2)'!B11 -> 200 | L14: =(I14*J14*K14)/60 -> 150 | M14: ='Data entry (2)'!B19 -> 25 | N14: =L14*M14 -> 3750
A15: Slurry scraping | B15: ='Data entry (2)'!$B$4 -> 100 | C15: ='Operating costs (2)'!B32 -> 0.6 | D15: ='Data entry (2)'!B11 -> 200 | E15: =(B15*C15*D15)/60 -> 200 | F15: ='Data entry (2)'!B19 -> 25 | G15: =E15*F15 -> 5000 | H15: Yard cleaning | I15: ='Data entry (2)'!$B$4 -> 100 | J15: ='Operating costs (2)'!B21 -> 0.28 | K15: ='Data entry (2)'!B11 -> 200 | L15: =(I15*J15*K15)/60 -> 93.33333333 | M15: ='Data entry (2)'!B19 -> 25 | N15: =L15*M15 -> 2333.333333
H16: Mastitis | I16: ='Data entry (2)'!$B$4 -> 100 | J16: ='Operating costs (2)'!B84-'Operating costs (2)'!B85 -> 5 | M16: ='Operating costs (2)'!E84 -> 183 | N16: =I16*J16/100*M16 -> 915
H17: Lameness | I17: ='Data entry (2)'!$B$4 -> 100 | J17: ='Operating costs (2)'!B77-'Operating costs (2)'!B78 -> -3 | M17: ='Operating costs (2)'!E77 -> 246 | N17: =I17*J17/100*M17 -> -738
A19: Capital | B19: Cows | C19: £/cow | D19: £total | E19: Int.£ | F19: Dep.£ | H19: Capital | I19: Cows | J19: £/cow | K19: £total | L19: Int.£ | M19: Dep.£
A20: Cubicle building | B20: ='Data entry (2)'!$B$4 -> 100 | C20: ='Capital costs (2)'!D28+'Capital costs (2)'!D27 -> 115 | D20: =B20*C20 -> 11500 | E20: =('Data entry (2)'!B14)*D20/100 -> 575 | F20: =('Data entry (2)'!B12)*D20/100 -> 575 | G20: =E20+F20 -> 1150
A21: Slurry storage | B21: ='Data entry (2)'!$B$4 -> 100 | C21: ='Capital costs (2)'!D21 -> 529 | D21: =B21*C21 -> 52900 | E21: =('Data entry (2)'!B14)*D21/100 -> 2645 | F21: =('Data entry (2)'!B12)*D21/100 -> 2645 | G21: =E21+F21 -> 5290
A22: Straw chopper
A23: Total capital | D23: =SUM(D20:D22) -> 64400 | H23: Total capital | K23: =SUM(K20:K22) -> 0
A25: Total (A) | G25: =SUM(G9:G24) -> 21206.66667 | H25: Total (B) | N25: =SUM(N9:N24) -> 18260.33333
A27: Additional Profit (B-A) = | G27: =N25-G25 -> -2946.333333
A28: Return on capital invested % | G28: =((G27+E20+E21)/D23) -> 0.004249482402

Sheet New cubicle (hidden)
A1: MDC dairy cow housing model
A7: LOSSES | H7: GAINS
A8: Reduced Income | G8: £/annum | H8: Increased Income | N8: £/annum
A12: Increased Costs | B12: Cows | C12: Units | D12: Days | E12: Total | F12: £/unit | H12: Cost Savings | I12: Cows | J12: Units | K12: Days | L12: Total | M12: £/unit
A13: Straw | B13: ='Data entry (2)'!$B$4 -> 100 | C13: ='Operating costs (2)'!B7 -> 7 | D13: ='Data entry (2)'!B11 -> 200 | E13: =(B13*C13*D13)/1000 -> 140 | F13: ='Data entry (2)'!B20 -> 40 | G13: =E13*F13 -> 5600 | H13: Straw | I13: ='Data entry (2)'!$B$4 -> 100 | J13: ='Operating costs (2)'!B6 -> 15 | K13: ='Data entry (2)'!B11 -> 200 | L13: =(I13*J13*K13)/1000 -> 300 | M13: ='Data entry (2)'!B20 -> 40 | N13: =L13*M13 -> 12000
A14: Bedding | B14: ='Data entry (2)'!$B$4 -> 100 | C14: ='Operating costs (2)'!B25 -> 0.5 | D14: ='Data entry (2)'!B11 -> 200 | E14: =(B14*C14*D14)/60 -> 166.6666667 | F14: ='Data entry (2)'!B19 -> 25 | G14: =E14*F14 -> 4166.666667 | H14: Bedding | I14: ='Data entry (2)'!$B$4 -> 100 | J14: ='Operating costs (2)'!B17 -> 0.45 | K14: ='Data entry (2)'!B11 -> 200 | L14: =(I14*J14*K14)/60 -> 150 | M14: ='Data entry (2)'!B19 -> 25 | N14: =L14*M14 -> 3750
A15: Slurry scraping | B15: ='Data entry (2)'!$B$4 -> 100 | C15: ='Operating costs (2)'!B32 -> 0.6 | D15: ='Data entry (2)'!B11 -> 200 | E15: =(B15*C15*D15)/60 -> 200 | F15: ='Data entry (2)'!B19 -> 25 | G15: =E15*F15 -> 5000 | H15: Yard cleaning | I15: ='Data entry (2)'!$B$4 -> 100 | J15: ='Operating costs (2)'!B21 -> 0.28 | K15: ='Data entry (2)'!B11 -> 200 | L15: =(I15*J15*K15)/60 -> 93.33333333 | M15: ='Data entry (2)'!B19 -> 25 | N15: =L15*M15 -> 2333.333333
H16: Mastitis | I16: ='Data entry (2)'!$B$4 -> 100 | J16: ='Operating costs (2)'!B84-'Operating costs (2)'!B85 -> 5 | M16: ='Operating costs (2)'!E84 -> 183 | N16: =I16*J16/100*M16 -> 915
H17: Lameness | I17: ='Data entry (2)'!$B$4 -> 100 | J17: ='Operating costs (2)'!B77-'Operating costs (2)'!B78 -> -3 | M17: ='Operating costs (2)'!E77 -> 246 | N17: =I17*J17/100*M17 -> -738
A19: Capital | B19: Cows | C19: £/cow | D19: £total | E19: Int.£ | F19: Dep.£ | H19: Capital | I19: Cows | J19: £/cow | K19: £total | L19: Int.£ | M19: Dep.£
A20: Cubicle building | B20: ='Data entry (2)'!$B$4 -> 100 | C20: ='Capital costs (2)'!D8+'Capital costs (2)'!D28 -> 788 | D20: =B20*C20 -> 78800 | E20: =('Data entry (2)'!B14)*D20/100 -> 3940 | F20: =('Data entry (2)'!B12)*D20/100 -> 3940 | G20: =E20+F20 -> 7880 | H20: Straw yard | I20: ='Data entry (2)'!$B$4 -> 100 | J20: ='Capital costs (2)'!D6 -> 1312.5 | K20: =I20*J20 -> 131250 | L20: =('Data entry (2)'!B14)*K20/100 -> 6562.5 | M20: =('Data entry (2)'!B12)*K20/100 -> 6562.5 | N20: =L20+M20 -> 13125
A21: Slurry storage | B21: ='Data entry (2)'!$B$4 -> 100 | C21: ='Capital costs (2)'!D21 -> 529 | D21: =B21*C21 -> 52900 | E21: =('Data entry (2)'!B14)*D21/100 -> 2645 | F21: =('Data entry (2)'!B12)*D21/100 -> 2645 | G21: =E21+F21 -> 5290
A22: Straw chopper
A23: Total capital | D23: =SUM(D20:D22) -> 131700 | H23: Total capital | K23: =SUM(K20:K22) -> 131250
A25: Total (A) | G25: =SUM(G9:G24) -> 27936.66667 | H25: Total (B) | N25: =SUM(N9:N24) -> 31385.33333
A27: Additional Profit (B-A) = | G27: =N25-G25 -> 3448.666667
A28: Return on capital invested % | G28: =((G27+E20+E21)/D23) -> 0.07618577575

Sheet Cubicle + slats (hidden)
A1: MDC dairy cow housing model
A7: LOSSES | H7: GAINS
A8: Reduced Income | G8: £/annum | H8: Increased Income | N8: £/annum
A12: Increased Costs | B12: Cows | C12: Units | D12: Days | E12: Total | F12: £/unit | H12: Cost Savings | I12: Cows | J12: Units | K12: Days | L12: Total | M12: £/unit
A13: Straw | B13: ='Data entry (2)'!$B$4 -> 100 | C13: ='Operating costs (2)'!B7 -> 7 | D13: ='Data entry (2)'!B11 -> 200 | E13: =(B13*C13*D13)/1000 -> 140 | F13: ='Data entry (2)'!B20 -> 40 | G13: =E13*F13 -> 5600 | H13: Straw | I13: ='Data entry (2)'!$B$4 -> 100 | J13: ='Operating costs (2)'!B6 -> 15 | K13: ='Data entry (2)'!B11 -> 200 | L13: =(I13*J13*K13)/1000 -> 300 | M13: ='Data entry (2)'!B20 -> 40 | N13: =L13*M13 -> 12000
A14: Bedding | B14: ='Data entry (2)'!$B$4 -> 100 | C14: ='Operating costs (2)'!B25 -> 0.5 | D14: ='Data entry (2)'!B11 -> 200 | E14: =(B14*C14*D14)/60 -> 166.6666667 | F14: ='Data entry (2)'!B19 -> 25 | G14: =E14*F14 -> 4166.666667 | H14: Bedding | I14: ='Data entry (2)'!$B$4 -> 100 | J14: ='Operating costs (2)'!B17 -> 0.45 | K14: ='Data entry (2)'!B11 -> 200 | L14: =(I14*J14*K14)/60 -> 150 | M14: ='Data entry (2)'!B19 -> 25 | N14: =L14*M14 -> 3750
A15: Slurry scraping | B15: ='Data entry (2)'!$B$4 -> 100 | C15: ='Operating costs (2)'!B32 -> 0.6 | D15: ='Data entry (2)'!B11 -> 200 | E15: =(B15*C15*D15)/60 -> 200 | F15: ='Data entry (2)'!B19 -> 25 | G15: =E15*F15 -> 5000 | H15: Yard cleaning | I15: ='Data entry (2)'!$B$4 -> 100 | J15: ='Operating costs (2)'!B21 -> 0.28 | K15: ='Data entry (2)'!B11 -> 200 | L15: =(I15*J15*K15)/60 -> 93.33333333 | M15: ='Data entry (2)'!B19 -> 25 | N15: =L15*M15 -> 2333.333333
H16: Mastitis | I16: ='Data entry (2)'!$B$4 -> 100 | J16: ='Operating costs (2)'!B84-'Operating costs (2)'!B85 -> 5 | M16: ='Operating costs (2)'!E84 -> 183 | N16: =I16*J16/100*M16 -> 915
H17: Lameness | I17: ='Data entry (2)'!$B$4 -> 100 | J17: ='Operating costs (2)'!B77-'Operating costs (2)'!B78 -> -3 | M17: ='Operating costs (2)'!E77 -> 246 | N17: =I17*J17/100*M17 -> -738
A19: Capital | B19: Cows | C19: £/cow | D19: £total | E19: Int.£ | F19: Dep.£ | H19: Capital | I19: Cows | J19: £/cow | K19: £total | L19: Int.£ | M19: Dep.£
A20: Cubicle + slats | B20: ='Data entry (2)'!$B$4 -> 100 | C20: ='Capital costs (2)'!D9+'Capital costs (2)'!D28 -> 1347 | D20: =B20*C20 -> 134700 | E20: =('Data entry (2)'!B14)*D20/100 -> 6735 | F20: =('Data entry (2)'!B12)*D20/100 -> 6735 | G20: =E20+F20 -> 13470 | H20: Straw yard | I20: ='Data entry (2)'!$B$4 -> 100 | J20: ='Capital costs (2)'!D6 -> 1312.5 | K20: =I20*J20 -> 131250 | L20: =('Data entry (2)'!B14)*K20/100 -> 6562.5 | M20: =('Data entry (2)'!B12)*K20/100 -> 6562.5 | N20: =L20+M20 -> 13125
A21: Slurry storage | H21: Straw barn?
A22: Straw chopper
A23: Total capital | D23: =SUM(D20:D22) -> 134700 | H23: Total capital | K23: =SUM(K20:K22) -> 131250
A25: Total (A) | G25: =SUM(G9:G24) -> 28236.66667 | H25: Total (B) | N25: =SUM(N9:N24) -> 31385.33333
A27: Additional Profit (B-A) = | G27: =N25-G25 -> 3148.666667
A28: Return on capital invested % | G28: =((G27+E20+E21)/D23) -> 0.07337540213

Sheet Scrapers (hidden)
A1: MDC dairy cow housing model
A7: LOSSES | H7: GAINS
A8: Reduced Income | G8: £/annum | H8: Increased Income | N8: £/annum
A12: Increased Costs | B12: Cows | C12: Units | D12: Days | E12: Total | F12: £/unit | H12: Cost Savings | I12: Cows | J12: Units | K12: Days | L12: Total | M12: £/unit
A13: Scraper maint. | B13: ='Data entry (2)'!$B$4 -> 100 | F13: ='Operating costs (2)'!B35 -> 2 | G13: =B13*F13 -> 200 | H13: Slurry scraping | I13: ='Data entry (2)'!$B$4 -> 100 | J13: ='Operating costs (2)'!B32 -> 0.6 | K13: ='Data entry (2)'!B11 -> 200 | L13: =(I13*J13*K13)/60 -> 200 | M13: ='Data entry (2)'!B19 -> 25 | N13: =L13*M13 -> 5000
A14: Scraper elec. | B14: ='Data entry (2)'!$B$4 -> 100 | C14: ='Operating costs (2)'!B36 -> 0.18 | D14: ='Data entry (2)'!B11 -> 200 | E14: =B14*C14*D14 -> 3600 | F14: ='Data entry (2)'!B16 -> 10 | G14: =E14*F14/100 -> 360
A17: Capital | B17: Cows | C17: £/cow | D17: £total | E17: Int.£ | F17: Dep.£ | H17: Capital | I17: Cows | J17: £/cow | K17: £total | L17: Int.£ | M17: Dep.£
A18: Scraper system | B18: ='Data entry (2)'!$B$4 -> 100 | C18: ='Capital costs (2)'!D24 -> 66 | D18: =B18*C18 -> 6600 | E18: =('Data entry (2)'!B14)*D18/100 -> 330 | F18: =('Data entry (2)'!B12)*D18/100 -> 330 | G18: =E18+F18 -> 660
A21: Total capital | D21: =SUM(D18:D20) -> 6600
A23: Total (A) | G23: =SUM(G9:G22) -> 1220 | H23: Total (B) | N23: =SUM(N9:N22) -> 5000
A25: Additional Profit (B-A) = | G25: =N23-G23 -> 3780
A26: Return on capital invested % | G26: =(G25+E18)/D18 -> 0.6227272727

Sheet Flushing (hidden)
A1: MDC dairy cow housing model
A7: LOSSES | H7: GAINS
A8: Reduced Income | G8: £/annum | H8: Increased Income | N8: £/annum
A12: Increased Costs | B12: Cows | C12: Units | D12: Days | E12: Total | F12: £/unit | H12: Cost Savings | I12: Cows | J12: Units | K12: Days | L12: Total | M12: £/unit
A13: Flush maintenance | B13: ='Data entry (2)'!B4 -> 100 | F13: ='Operating costs (2)'!B39 -> 0 | G13: =B13*F13 -> 0 | H13: Slurry scraping | I13: ='Data entry (2)'!$B$4 -> 100 | J13: ='Operating costs (2)'!B32 -> 0.6 | K13: ='Data entry (2)'!B11 -> 200 | L13: =(I13*J13*K13)/60 -> 200 | M13: ='Data entry (2)'!B19 -> 25 | N13: =L13*M13 -> 5000
A14: Flush elec. | B14: ='Data entry (2)'!B4 -> 100 | C14: ='Operating costs (2)'!B40 -> 0 | D14: ='Data entry (2)'!B11 -> 200 | E14: =B14*C14*D14 -> 0 | F14: ='Data entry (2)'!B16/100 -> 0.1 | G14: =E14*F14 -> 0
A15: Flush water | B15: ='Data entry (2)'!B4 -> 100 | C15: ='Operating costs (2)'!B41 -> 0 | D15: ='Data entry (2)'!B11 -> 200 | E15: =B15*C15*D15 -> 0 | F15: ='Data entry (2)'!B15/100 -> 0.01 | G15: =E15*F15 -> 0
A17: Capital | B17: Cows | C17: £/cow | D17: £total | E17: Int.£ | F17: Dep.£ | H17: Capital | I17: Cows | J17: £/cow | K17: £total | L17: Int.£ | M17: Dep.£
A18: Flush system | B18: ='Data entry (2)'!$B$4 -> 100 | C18: ='Capital costs (2)'!D48 -> 0 | D18: =B18*C18 -> 0 | E18: =('Data entry (2)'!B14)*D18/100 -> 0 | F18: =('Data entry (2)'!B12)*D18/100 -> 0 | G18: =E18+F18 -> 0
A21: Total capital | D21: =SUM(D18:D20) -> 0 | H21: Total capital | K21: =SUM(K18:K20) -> 0
A23: Total (A) | G23: =SUM(G9:G22) -> 0 | H23: Total (B) | N23: =SUM(N9:N22) -> 5000
A25: Additional Profit (B-A) = | G25: =N23-G23 -> 5000
A26: Return on capital invested % | G26: =(G25+E18-L18)/(D21-K21) -> 

Sheet Light (hidden)
A1: MDC dairy cow housing model
A7: LOSSES | H7: GAINS
A8: Reduced Income | B8: Cows | C8: Units | D8: Days | E8: Total | F8: £/unit | G8: £/annum | H8: Increased Income | I8: Cows | J8: Units | K8: Days | L8: Total | M8: £/unit | N8: £/annum
A9: Butterfat | B9: ='Data entry (2)'!$B$4 -> 100 | C9: ='Data entry (2)'!B6 -> 25 | D9: ='Data entry (2)'!B11 -> 200 | E9: =B9*C9*D9 -> 500000 | F9: ='Operating costs (2)'!B66*'Data entry (2)'!B7/100 -> 0.0024 | G9: =E9*F9 -> 1200 | H9: Milk | I9: ='Data entry (2)'!$B$4 -> 100 | J9: ='Data entry (2)'!B6*'Operating costs (2)'!B64/100 -> 2 | K9: ='Data entry (2)'!B11 -> 200 | L9: =I9*J9*K9 -> 40000 | M9: =('Data entry (2)'!B8)/100 -> 0.185 | N9: =L9*M9 -> 7400
A12: Increased Costs | B12: Cows | C12: Units | D12: Days | E12: Total | F12: £/unit | H12: Cost Savings | I12: Cows | J12: Units | K12: Days | L12: Total | M12: £/unit
A13: Quota | E13: =L9 -> 40000 | F13: ='Data entry (2)'!B9/100 -> 0.001 | G13: =E13*F13 -> 40 | H13: Quota & BF% | L13: =E9*'Operating costs (2)'!B66*0.18 -> 14400 | M13: ='Data entry (2)'!B9/100 -> 0.001 | N13: =L13*M13 -> 14.4
A14: Feed | B14: ='Data entry (2)'!$B$4 -> 100 | C14: ='Operating costs (2)'!B65 -> 6 | D14: ='Data entry (2)'!B11 -> 200 | E14: =B14*C14/100*D14 -> 1200 | F14: ='Data entry (2)'!B10/100 -> 2 | G14: =E14*F14 -> 2400
A15: Electricity | B15: ='Data entry (2)'!$B$4 -> 100 | C15: ='Operating costs (2)'!B67 -> 2 | D15: ='Data entry (2)'!B11 -> 200 | E15: =B15*C15*D15 -> 40000 | F15: ='Data entry (2)'!B16/100 -> 0.1 | G15: =E15*F15 -> 4000
A19: Capital | B19: Cows | C19: £/cow | D19: £total | E19: Int.£ | F19: Dep.£ | H19: Capital | I19: Cows | J19: £/cow | K19: £total | L19: Int.£ | M19: Dep.£
A20: Lighting system | B20: ='Data entry (2)'!$B$4 -> 100 | C20: ='Capital costs (2)'!D42 -> 45 | D20: =B20*C20 -> 4500 | E20: =D20*'Data entry (2)'!B14/100 -> 225 | F20: =D20*'Data entry (2)'!B12/100 -> 225 | G20: =E20+F20 -> 450
A23: Total capital | D23: =SUM(D20:D22) -> 4500 | H23: Total capital | K23: =SUM(K20:K22) -> 0
A25: Total (A) | G25: =SUM(G9:G24) -> 8090 | H25: Total (B) | N25: =SUM(N9:N24) -> 7414.4
A27: Additional Profit (B-A) = | G27: =N25-G25 -> -675.6
A28: Return on capital invested % | G28: =(G27+E20)/D20 -> -0.1001333333

Sheet Sand (hidden)
A1: MDC dairy cow housing model
A7: LOSSES | H7: GAINS
A8: Reduced Income | G8: £/annum | H8: Increased Income | N8: £/annum
A12: Increased Costs | B12: Cows | C12: Units | D12: Days | E12: Total | F12: £/unit | H12: Cost Savings | I12: Cows | J12: Units | K12: Days | L12: Total | M12: £/unit
A13: Sand | B13: ='Data entry (2)'!$B$4 -> 100 | C13: ='Operating costs (2)'!B11 -> 14 | D13: ='Data entry (2)'!B11 -> 200 | E13: =B13*C13*D13/1000 -> 280 | F13: ='Data entry (2)'!B21 -> 15 | G13: =E13*F13 -> 4200 | H13: Straw | I13: ='Data entry (2)'!$B$4 -> 100 | J13: ='Operating costs (2)'!B8 -> 5 | K13: ='Data entry (2)'!B11 -> 200 | L13: =(I13*J13*K13)/1000 -> 100 | M13: ='Data entry (2)'!B20 -> 40 | N13: =L13*M13 -> 4000
A17: Capital | B17: Cows | C17: £/cow | D17: £total | E17: Int.£ | F17: Dep.£ | H17: Capital | I17: Cows | J17: £/cow | K17: £total | L17: Int.£ | M17: Dep.£
A18: Sand | B18: ='Data entry (2)'!$B$4 -> 100 | C18: ='Capital costs (2)'!D31 -> 65 | D18: =B18*C18 -> 6500 | E18: =('Data entry (2)'!B14)*D18/100 -> 325 | F18: =('Data entry (2)'!B12)*D18/100 -> 325 | G18: =E18+F18 -> 650 | H18: Concrete | I18: ='Data entry (2)'!$B$4 -> 100 | J18: ='Capital costs (2)'!D28 -> 55 | K18: =I18*J18 -> 5500 | L18: =K18*'Data entry (2)'!B14/100 -> 275 | M18: =K18*'Data entry (2)'!B12/100 -> 275 | N18: =L18+M18 -> 550
A21: Total capital | D21: =SUM(D18:D20) -> 6500 | H21: Total capital | K21: =SUM(K18:K20) -> 5500
A23: Total (A) | G23: =SUM(G9:G22) -> 4850 | H23: Total (B) | N23: =SUM(N9:N22) -> 4550
A25: Additional Profit (B-A) = | G25: =N23-G23 -> -300
A26: Return on capital invested % | G26: =(G25+E18-L18)/(D21-K21) -> -0.25

Sheet Mattress (hidden)
A1: MDC dairy cow housing model
A7: LOSSES | H7: GAINS
A8: Reduced Income | G8: £/annum | H8: Increased Income | N8: £/annum
A12: Increased Costs | B12: Cows | C12: Units | D12: Days | E12: Total | F12: £/unit | H12: Cost Savings | I12: Cows | J12: Units | K12: Days | L12: Total | M12: £/unit
A13: Straw | B13: ='Data entry (2)'!$B$4 -> 100 | C13: ='Operating costs (2)'!B9 -> 3 | D13: ='Data entry (2)'!B11 -> 200 | E13: =B13*C13*D13/1000 -> 60 | F13: ='Data entry (2)'!B20 -> 40 | G13: =E13*F13 -> 2400 | H13: Straw | I13: ='Data entry (2)'!$B$4 -> 100 | J13: ='Operating costs (2)'!B8 -> 5 | K13: ='Data entry (2)'!B11 -> 200 | L13: =(I13*J13*K13)/1000 -> 100 | M13: ='Data entry (2)'!B20 -> 40 | N13: =L13*M13 -> 4000
A17: Capital | B17: Cows | C17: £/cow | D17: £total | E17: Int.£ | F17: Dep.£ | H17: Capital | I17: Cows | J17: £/cow | K17: £total | L17: Int.£ | M17: Dep.£
A18: Mattress | B18: ='Data entry (2)'!$B$4 -> 100 | C18: ='Capital costs (2)'!D30-'Capital costs (2)'!D28 -> 60 | D18: =B18*C18 -> 6000 | E18: =('Data entry (2)'!B14)*D18/100 -> 300 | F18: =('Data entry (2)'!B13)*D18/100 -> 600 | G18: =E18+F18 -> 900
A21: Total capital | D21: =SUM(D18:D20) -> 6000 | H21: Total capital | K21: =SUM(K18:K20) -> 0
A23: Total (A) | G23: =SUM(G9:G22) -> 3300 | H23: Total (B) | N23: =SUM(N9:N22) -> 4000
A25: Additional Profit (B-A) = | G25: =N23-G23 -> 700
A26: Return on capital invested % | G26: =(G25+E18-L18)/(D21-K21) -> 0.1666666667

Sheet Mat (hidden)
A1: MDC dairy cow housing model
A7: LOSSES | H7: GAINS
A8: Reduced Income | G8: £/annum | H8: Increased Income | N8: £/annum
A12: Increased Costs | B12: Cows | C12: Units | D12: Days | E12: Total | F12: £/unit | H12: Cost Savings | I12: Cows | J12: Units | K12: Days | L12: Total | M12: £/unit
A13: Straw | B13: ='Data entry (2)'!$B$4 -> 100 | C13: ='Operating costs (2)'!B9 -> 3 | D13: ='Data entry (2)'!B11 -> 200 | E13: =B13*C13*D13/1000 -> 60 | F13: ='Data entry (2)'!B20 -> 40 | G13: =E13*F13 -> 2400 | H13: Straw | I13: ='Data entry (2)'!$B$4 -> 100 | J13: ='Operating costs (2)'!B8 -> 5 | K13: ='Data entry (2)'!B11 -> 200 | L13: =(I13*J13*K13)/1000 -> 100 | M13: ='Data entry (2)'!B20 -> 40 | N13: =L13*M13 -> 4000
A17: Capital | B17: Cows | C17: £/cow | D17: £total | E17: Int.£ | F17: Dep.£ | H17: Capital | I17: Cows | J17: £/cow | K17: £total | L17: Int.£ | M17: Dep.£
A18: Mat | B18: ='Data entry (2)'!$B$4 -> 100 | C18: ='Capital costs (2)'!D29-'Capital costs (2)'!D28 -> 30 | D18: =B18*C18 -> 3000 | E18: =('Data entry (2)'!B14)*D18/100 -> 150 | F18: =('Data entry (2)'!B13)*D18/100 -> 300 | G18: =E18+F18 -> 450
A21: Total capital | D21: =SUM(D18:D20) -> 3000 | H21: Total capital | K21: =SUM(K18:K20) -> 0
A23: Total (A) | G23: =SUM(G9:G22) -> 2850 | H23: Total (B) | N23: =SUM(N9:N22) -> 4000
A25: Additional Profit (B-A) = | G25: =N23-G23 -> 1150
A26: Return on capital invested % | G26: =(G25+E18-L18)/(D21-K21) -> 0.4333333333
